Workbook

Sheet Orçamento
O3: UNIDADE ESCOLAR | V3: CÓDIGO INEP
O4: CENTRO DE ENSINO EM PERÍODO INTEGRAL SYLVIO DE MELLO | V4: 52069206
A6: Nmax | O6: OBRA | S6: DATA | V6: CIDADE
A7: =MAX($C$18:$C$928) -> 4 | O7: REFORMA | S7: 2020-07-07 | V7: MORRINHOS
O9: CRE | R9: ENDEREÇO | S9: REFERÊNCIA AGETOP | V9: REFERÊNCIA SINAPI
O10: MORRINHOS | R10: RUA PIAUI 386, CENTRO, CEP:75650-000 | S10: ABR/19 | T10: DESONERADA | V10: NOV/19 | W10: DESONERADA
O12: ÁREA EXISTENTE (M²) | R12: ÁREA A CONSTRUIR (M²) | S12: ÁREA A DEMOLIR (M²) | V12: ÁREA TOTAL CONSTRUÍDA (M²)
O13: 2290.83 | R13: 751.61 | S13: 0 | V13: 3042.44
L15: FILTRO | O15: PLANILHA ORÇAMENTÁRIA
A16: Nível E | B16: Save Nivel | C16: Nível C | D16: Altura | E16: n1 | F16: n2 | G16: n3 | H16: n4 | I16: n5 | J16: Czero | K16: Cnível | L16: ↓ | M16: Nível | N16: Nível Corrigido | O16: ITEM | P16: TABELA | Q16: CODIGO | R16: DESCRIÇÃO DOS SERVIÇOS | S16: UNID | T16: QUANT | U16: MAT | V16: MO | W16: T.SERVIÇO | X16: OBSERVAÇÕES¹
A17: =CHOOSE(1+LOG(1+2*(ORÇAMENTO.Nivel="Nível 1")+4*(ORÇAMENTO.Nivel="Nível 2")+8*(ORÇAMENTO.Nivel="Nível 3")+16*(ORÇAMENTO.Nivel="Nível 4")+32*(ORÇAMENTO.Nivel="Serviço"),2),0,1,2,3,4,"S") -> S | B17: =IF(OR(C17="s",C17=0),OFFSET(B17,-1,0),C17) -> Save Nivel | C17: =IF(OFFSET(C17,-1,0)="L",1,IF(OFFSET(C17,-1,0)=1,2,IF(OR(A17="s",A17=0),"S",IF(AND(OFFSET(C17,-1,0)=2,A17=4),3,IF(AND(OR(OFFSET(C17,-1,0)="s",OFFSET(C17,-1,0)=0),A17<>"s",A17>OFFSET(B17,-1,0)),OFFSET(B17,-1,0),A17))))) -> S | D17: =IF(OR(C17="S",C17=0),0,IF(ISERROR(K17),J17,SMALL(J17:K17,1))) -> 0 | E17: =IF($C17=1,OFFSET(E17,-1,0)+1,OFFSET(E17,-1,0)) -> n1 | F17: =IF($C17=1,0,IF($C17=2,OFFSET(F17,-1,0)+1,OFFSET(F17,-1,0))) -> n2 | G17: =IF(AND($C17<=2,$C17<>0),0,IF($C17=3,OFFSET(G17,-1,0)+1,OFFSET(G17,-1,0))) -> n3 | H17: =IF(AND($C17<=3,$C17<>0),0,IF($C17=4,OFFSET(H17,-1,0)+1,OFFSET(H17,-1,0))) -> n4 | I17: =IF(AND($C17<=4,$C17<>0),0,IF(AND($C17="S",$W17>0),OFFSET(I17,-1,0)+1,OFFSET(I17,-1,0))) -> n5 | J17: =IF(OR($C17="S",$C17=0),0,MATCH(0,OFFSET($D17,1,$C17,ROW($C$928)-ROW($C17)),0)) -> 0 | K17: =IF(OR($C17="S",$C17=0),0,MATCH(OFFSET($D17,0,$C17)+1,OFFSET($D17,1,$C17,ROW($C$928)-ROW($C17)),0)) -> 0 | M17: Serviço | N17: Serviço | O17: - | P17: SINAPI | R17: (sem código) | S17: - | U17: 0 | V17: 0 | W17: 0
A18: 0 | C18: L | D18: =COUNTA(OFFSET(D18,1,0):D$928) -> 909 | E18: =LEFT(O19,1)-1 -> 0 | L18: F | M18: LOTE | N18: LOTE | O18: REFORMA - CENTRO DE ENSINO EM PERÍODO INTEGRAL SYLVIO DE MELLO | W18: 786551.21
A19: =CHOOSE(1+LOG(1+2*(ORÇAMENTO.Nivel="Nível 1")+4*(ORÇAMENTO.Nivel="Nível 2")+8*(ORÇAMENTO.Nivel="Nível 3")+16*(ORÇAMENTO.Nivel="Nível 4")+32*(ORÇAMENTO.Nivel="Serviço"),2),0,1,2,3,4,"S") -> 1 | B19: =IF(OR(C19="s",C19=0),OFFSET(B19,-1,0),C19) -> 1 | C19: =IF(OFFSET(C19,-1,0)="L",1,IF(OFFSET(C19,-1,0)=1,2,IF(OR(A19="s",A19=0),"S",IF(AND(OFFSET(C19,-1,0)=2,A19=4),3,IF(AND(OR(OFFSET(C19,-1,0)="s",OFFSET(C19,-1,0)=0),A19<>"s",A19>OFFSET(B19,-1,0)),OFFSET(B19,-1,0),A19))))) -> 1 | D19: =IF(OR(C19="S",C19=0),0,IF(ISERROR(K19),J19,SMALL(J19:K19,1))) -> 598 | E19: =IF($C19=1,OFFSET(E19,-1,0)+1,OFFSET(E19,-1,0)) -> 1 | F19: =IF($C19=1,0,IF($C19=2,OFFSET(F19,-1,0)+1,OFFSET(F19,-1,0))) -> 0 | G19: =IF(AND($C19<=2,$C19<>0),0,IF($C19=3,OFFSET(G19,-1,0)+1,OFFSET(G19,-1,0))) -> 0 | H19: =IF(AND($C19<=3,$C19<>0),0,IF($C19=4,OFFSET(H19,-1,0)+1,OFFSET(H19,-1,0))) -> 0 | I19: =IF(AND($C19<=4,$C19<>0),0,IF(AND($C19="S",$W19>0),OFFSET(I19,-1,0)+1,OFFSET(I19,-1,0))) -> 0 | J19: =IF(OR($C19="S",$C19=0),0,MATCH(0,OFFSET($D19,1,$C19,ROW($C$928)-ROW($C19)),0)) -> 909 | K19: =IF(OR($C19="S",$C19=0),0,MATCH(OFFSET($D19,0,$C19)+1,OFFSET($D19,1,$C19,ROW($C$928)-ROW($C19)),0)) -> 598 | L19: F | M19: Nível 1 | N19: Nível 1 | O19: 1. | P19: AGETOP | R19: REFORMA
A20: =CHOOSE(1+LOG(1+2*(ORÇAMENTO.Nivel="Nível 1")+4*(ORÇAMENTO.Nivel="Nível 2")+8*(ORÇAMENTO.Nivel="Nível 3")+16*(ORÇAMENTO.Nivel="Nível 4")+32*(ORÇAMENTO.Nivel="Serviço"),2),0,1,2,3,4,"S") -> 2 | B20: =IF(OR(C20="s",C20=0),OFFSET(B20,-1,0),C20) -> 2 | C20: =IF(OFFSET(C20,-1,0)="L",1,IF(OFFSET(C20,-1,0)=1,2,IF(OR(A20="s",A20=0),"S",IF(AND(OFFSET(C20,-1,0)=2,A20=4),3,IF(AND(OR(OFFSET(C20,-1,0)="s",OFFSET(C20,-1,0)=0),A20<>"s",A20>OFFSET(B20,-1,0)),OFFSET(B20,-1,0),A20))))) -> 2 | D20: =IF(OR(C20="S",C20=0),0,IF(ISERROR(K20),J20,SMALL(J20:K20,1))) -> 59 | E20: =IF($C20=1,OFFSET(E20,-1,0)+1,OFFSET(E20,-1,0)) -> 1 | F20: =IF($C20=1,0,IF($C20=2,OFFSET(F20,-1,0)+1,OFFSET(F20,-1,0))) -> 1 | G20: =IF(AND($C20<=2,$C20<>0),0,IF($C20=3,OFFSET(G20,-1,0)+1,OFFSET(G20,-1,0))) -> 0 | H20: =IF(AND($C20<=3,$C20<>0),0,IF($C20=4,OFFSET(H20,-1,0)+1,OFFSET(H20,-1,0))) -> 0 | I20: =IF(AND($C20<=4,$C20<>0),0,IF(AND($C20="S",$W20>0),OFFSET(I20,-1,0)+1,OFFSET(I20,-1,0))) -> 0 | J20: 597 | K20: 59 | L20: F | M20: Nível 2 | N20: Nível 2 | O20: 1.1. | P20: AGETOP | R20: SERVIÇOS PRELIMINARES
A21: =CHOOSE(1+LOG(1+2*(ORÇAMENTO.Nivel="Nível 1")+4*(ORÇAMENTO.Nivel="Nível 2")+8*(ORÇAMENTO.Nivel="Nível 3")+16*(ORÇAMENTO.Nivel="Nível 4")+32*(ORÇAMENTO.Nivel="Serviço"),2),0,1,2,3,4,"S") -> 3 | B21: =IF(OR(C21="s",C21=0),OFFSET(B21,-1,0),C21) -> 3 | C21: =IF(OFFSET(C21,-1,0)="L",1,IF(OFFSET(C21,-1,0)=1,2,IF(OR(A21="s",A21=0),"S",IF(AND(OFFSET(C21,-1,0)=2,A21=4),3,IF(AND(OR(OFFSET(C21,-1,0)="s",OFFSET(C21,-1,0)=0),A21<>"s",A21>OFFSET(B21,-1,0)),OFFSET(B21,-1,0),A21))))) -> 3 | D21: =IF(OR(C21="S",C21=0),0,IF(ISERROR(K21),J21,SMALL(J21:K21,1))) -> 5 | E21: =IF($C21=1,OFFSET(E21,-1,0)+1,OFFSET(E21,-1,0)) -> 1 | F21: =IF($C21=1,0,IF($C21=2,OFFSET(F21,-1,0)+1,OFFSET(F21,-1,0))) -> 1 | G21: =IF(AND($C21<=2,$C21<>0),0,IF($C21=3,OFFSET(G21,-1,0)+1,OFFSET(G21,-1,0))) -> 1 | H21: =IF(AND($C21<=3,$C21<>0),0,IF($C21=4,OFFSET(H21,-1,0)+1,OFFSET(H21,-1,0))) -> 0 | I21: =IF(AND($C21<=4,$C21<>0),0,IF(AND($C21="S",$W21>0),OFFSET(I21,-1,0)+1,OFFSET(I21,-1,0))) -> 0 | J21: 58 | K21: 5 | L21: F | M21: Nível 3 | N21: Nível 3 | O21: 1.1.1. | P21: SINAPI | R21: 1. REFORMA E AMPLIAÇÃO | S21: -
A22: S | B22: 3 | C22: S | D22: 0 | E22: 1 | F22: 1 | G22: 1 | H22: 0 | I22: 0 | J22: 0 | K22: 0 | L22: F | M22: Serviço | N22: Serviço | O22: 1.1.1.0.1. | P22: AGETOP | Q22: 20155 | R22: DEMOL.MURO/PAREDE PLACA PRÉ-MOLDADA C/TRANSP.C.B.E CARGA | S22: m2 | T22: 2.4
A23: S | B23: 3 | C23: S | D23: 0 | E23: 1 | F23: 1 | G23: 1 | H23: 0 | I23: 0 | J23: 0 | K23: 0 | L23: F | M23: Serviço | N23: Serviço | O23: 1.1.1.0.2. | P23: SINAPI | Q23: 98533 | R23: PODA EM ALTURA DE ÁRVORE COM DIÂMETRO DE TRONCO MAIOR OU IGUAL A 0,20 M E MENOR QUE 0,40 M.AF_05/2018 | S23: UN | T23: 1
A24: S | B24: 3 | C24: S | D24: 0 | E24: 1 | F24: 1 | G24: 1 | H24: 0 | I24: 0 | J24: 0 | K24: 0 | L24: F | M24: Serviço | N24: Serviço | O24: 1.1.1.0.3. | P24: SINAPI | Q24: 98529 | R24: CORTE RASO E RECORTE DE ÁRVORE COM DIÂMETRO DE TRONCO MAIOR OU IGUAL A 0,20 M E MENOR QUE 0,40 M.AF_05/2018 | S24: UN | T24: 1
A25: S | B25: 3 | C25: S | D25: 0 | E25: 1 | F25: 1 | G25: 1 | H25: 0 | I25: 0 | J25: 0 | K25: 0 | L25: F | M25: Serviço | N25: Serviço | O25: 1.1.1.0.4. | P25: SINAPI | Q25: 98526 | R25: REMOÇÃO DE RAÍZES REMANESCENTES DE TRONCO DE ÁRVORE COM DIÂMETRO MAIOR OU IGUAL A 0,20 M E MENOR QUE 0,40 M.AF_05/2018 | S25: UN | T25: 1
A26: 3 | B26: 3 | C26: 3 | D26: 7 | E26: 1 | F26: 1 | G26: 2 | H26: 0 | I26: 0 | J26: 53 | K26: 7 | L26: F | M26: Nível 3 | N26: Nível 3 | O26: 1.1.2. | P26: SINAPI | R26: 1.3 QUADRA DESCOBERTA | S26: -
A27: S | B27: 3 | C27: S | D27: 0 | E27: 1 | F27: 1 | G27: 2 | H27: 0 | I27: 0 | J27: 0 | K27: 0 | L27: F | M27: Serviço | N27: Serviço | O27: 1.1.2.0.1. | P27: AGETOP | Q27: 20118 | R27: DEM.ALVEN.TIJOLO S/REAP. C/TR.ATE CB. E CARGA | S27: m3 | T27: 12.1
A28: S | B28: 3 | C28: S | D28: 0 | E28: 1 | F28: 1 | G28: 2 | H28: 0 | I28: 0 | J28: 0 | K28: 0 | L28: F | M28: Serviço | N28: Serviço | O28: 1.1.2.0.2. | P28: AGETOP | Q28: 20121 | R28: DEM. MANUAL EM CONCR.SIMPLES C/TR.ATE CB.E CARGA (O.C.) | S28: m3 | T28: 36.3015
A29: S | B29: 3 | C29: S | D29: 0 | E29: 1 | F29: 1 | G29: 2 | H29: 0 | I29: 0 | J29: 0 | K29: 0 | L29: F | M29: Serviço | N29: Serviço | O29: 1.1.2.0.3. | P29: COMPOSIÇÃO | Q29: COMP 385_SEE | R29: DEMOLIÇÃO POSTE DE CONCRETO/METALICA ENTRE 10 E 15 METROS C/ REAPROVEITAMENTO C/ TRANSPORTE ATE CAÇAMBA E CARGA | S29: UN | T29: 4
A30: S | B30: 3 | C30: S | D30: 0 | E30: 1 | F30: 1 | G30: 2 | H30: 0 | I30: 0 | J30: 0 | K30: 0 | L30: F | M30: Serviço | N30: Serviço | O30: 1.1.2.0.4. | P30: AGETOP | Q30: 20155 | R30: DEMOL.MURO/PAREDE PLACA PRÉ-MOLDADA C/TRANSP.C.B.E CARGA | S30: m2 | T30: 0.36
A31: S | B31: 3 | C31: S | D31: 0 | E31: 1 | F31: 1 | G31: 2 | H31: 0 | I31: 0 | J31: 0 | K31: 0 | L31: F | M31: Serviço | N31: Serviço | O31: 1.1.2.0.5. | P31: AGETOP | Q31: 20160 | R31: DEMOLIÇÃO DE TELA DE ALAMBRADO C/ TRANSP. ATÉ CB. E CARGA | S31: m2 | T31: 42.4
A32: S | B32: 3 | C32: S | D32: 0 | E32: 1 | F32: 1 | G32: 2 | H32: 0 | I32: 0 | J32: 0 | K32: 0 | L32: F | M32: Serviço | N32: Serviço | O32: 1.1.2.0.6. | P32: AGETOP | Q32: 20106 | R32: RETIRADA DE JANELAS OU PORTAIS C/ TRANSP. ATÉ CB. E CARGA | S32: m2 | T32: 10
A33: =CHOOSE(1+LOG(1+2*(ORÇAMENTO.Nivel="Nível 1")+4*(ORÇAMENTO.Nivel="Nível 2")+8*(ORÇAMENTO.Nivel="Nível 3")+16*(ORÇAMENTO.Nivel="Nível 4")+32*(ORÇAMENTO.Nivel="Serviço"),2),0,1,2,3,4,"S") -> 3 | B33: =IF(OR(C33="s",C33=0),OFFSET(B33,-1,0),C33) -> 3 | C33: =IF(OFFSET(C33,-1,0)="L",1,IF(OFFSET(C33,-1,0)=1,2,IF(OR(A33="s",A33=0),"S",IF(AND(OFFSET(C33,-1,0)=2,A33=4),3,IF(AND(OR(OFFSET(C33,-1,0)="s",OFFSET(C33,-1,0)=0),A33<>"s",A33>OFFSET(B33,-1,0)),OFFSET(B33,-1,0),A33))))) -> 3 | D33: =IF(OR(C33="S",C33=0),0,IF(ISERROR(K33),J33,SMALL(J33:K33,1))) -> 10 | E33: =IF($C33=1,OFFSET(E33,-1,0)+1,OFFSET(E33,-1,0)) -> 1 | F33: =IF($C33=1,0,IF($C33=2,OFFSET(F33,-1,0)+1,OFFSET(F33,-1,0))) -> 1 | G33: =IF(AND($C33<=2,$C33<>0),0,IF($C33=3,OFFSET(G33,-1,0)+1,OFFSET(G33,-1,0))) -> 3 | H33: =IF(AND($C33<=3,$C33<>0),0,IF($C33=4,OFFSET(H33,-1,0)+1,OFFSET(H33,-1,0))) -> 0 | I33: =IF(AND($C33<=4,$C33<>0),0,IF(AND($C33="S",$W33>0),OFFSET(I33,-1,0)+1,OFFSET(I33,-1,0))) -> 0 | J33: 46 | K33: 10 | L33: F | M33: Nível 3 | N33: Nível 3 | O33: 1.1.3. | P33: SINAPI | R33: 3. VESTIÁRIOS FEMININO E MASCULINO | S33: -
A34: S | B34: 3 | C34: S | D34: 0 | E34: 1 | F34: 1 | G34: 3 | H34: 0 | I34: 0 | J34: 0 | K34: 0 | L34: F | M34: Serviço | N34: Serviço | O34: 1.1.3.0.1. | P34: AGETOP | Q34: 20118 | R34: DEM.ALVEN.TIJOLO S/REAP. C/TR.ATE CB. E CARGA | S34: m3 | T34: 6.3
A35: S | B35: 3 | C35: S | D35: 0 | E35: 1 | F35: 1 | G35: 3 | H35: 0 | I35: 0 | J35: 0 | K35: 0 | L35: F | M35: Serviço | N35: Serviço | O35: 1.1.3.0.2. | P35: AGETOP | Q35: 20106 | R35: RETIRADA DE JANELAS OU PORTAIS C/ TRANSP. ATÉ CB. E CARGA | S35: m2 | T35: 16.38
A36: S | B36: 3 | C36: S | D36: 0 | E36: 1 | F36: 1 | G36: 3 | H36: 0 | I36: 0 | J36: 0 | K36: 0 | L36: F | M36: Serviço | N36: Serviço | O36: 1.1.3.0.3. | P36: AGETOP | Q36: 20112 | R36: DEM.PISO CERAM. INCLUS. RETIRADA DE CONTRAPISO SOBRE LASTRO CONC.C/TR.CB.E CARGA | S36: m2 | T36: 68.66
A37: S | B37: 3 | C37: S | D37: 0 | E37: 1 | F37: 1 | G37: 3 | H37: 0 | I37: 0 | J37: 0 | K37: 0 | L37: F | M37: Serviço | N37: Serviço | O37: 1.1.3.0.4. | P37: AGETOP | Q37: 20115 | R37: DEMOLIÇÃO DE REVESTIMENTOS COM AZULEJOS C/TRANSP.ATE CB. E CARGA | S37: m2 | T37: 268.96
A38: =CHOOSE(1+LOG(1+2*(ORÇAMENTO.Nivel="Nível 1")+4*(ORÇAMENTO.Nivel="Nível 2")+8*(ORÇAMENTO.Nivel="Nível 3")+16*(ORÇAMENTO.Nivel="Nível 4")+32*(ORÇAMENTO.Nivel="Serviço"),2),0,1,2,3,4,"S") -> S | B38: =IF(OR(C38="s",C38=0),OFFSET(B38,-1,0),C38) -> 3 | C38: =IF(OFFSET(C38,-1,0)="L",1,IF(OFFSET(C38,-1,0)=1,2,IF(OR(A38="s",A38=0),"S",IF(AND(OFFSET(C38,-1,0)=2,A38=4),3,IF(AND(OR(OFFSET(C38,-1,0)="s",OFFSET(C38,-1,0)=0),A38<>"s",A38>OFFSET(B38,-1,0)),OFFSET(B38,-1,0),A38))))) -> S | D38: =IF(OR(C38="S",C38=0),0,IF(ISERROR(K38),J38,SMALL(J38:K38,1))) -> 0 | E38: =IF($C38=1,OFFSET(E38,-1,0)+1,OFFSET(E38,-1,0)) -> 1 | F38: =IF($C38=1,0,IF($C38=2,OFFSET(F38,-1,0)+1,OFFSET(F38,-1,0))) -> 1 | G38: =IF(AND($C38<=2,$C38<>0),0,IF($C38=3,OFFSET(G38,-1,0)+1,OFFSET(G38,-1,0))) -> 3 | H38: =IF(AND($C38<=3,$C38<>0),0,IF($C38=4,OFFSET(H38,-1,0)+1,OFFSET(H38,-1,0))) -> 0 | I38: =IF(AND($C38<=4,$C38<>0),0,IF(AND($C38="S",$W38>0),OFFSET(I38,-1,0)+1,OFFSET(I38,-1,0))) -> 0 | J38: 0 | K38: 0 | L38: F | M38: Serviço | N38: Serviço | O38: 1.1.3.0.5. | P38: AGETOP | Q38: 20140 | R38: DEMOLIÇAO DE VÁLVULA DE DESCARGA C/ TRANSP. ATÉ CB. E CARGA | S38: Un | T38: 5
A39: S | B39: 3 | C39: S | D39: 0 | E39: 1 | F39: 1 | G39: 3 | H39: 0 | I39: 0 | J39: 0 | K39: 0 | L39: F | M39: Serviço | N39: Serviço | O39: 1.1.3.0.6. | P39: AGETOP | Q39: 20137 | R39: DEMOLIÇAO BACIA SANITARIA C/ TRANSP. ATÉ CB. E CARGA | S39: Un | T39: 5
A40: S | B40: 3 | C40: S | D40: 0 | E40: 1 | F40: 1 | G40: 3 | H40: 0 | I40: 0 | J40: 0 | K40: 0 | L40: F | M40: Serviço | N40: Serviço | O40: 1.1.3.0.7. | P40: AGETOP | Q40: 20146 | R40: DEMOLIÇÃO DE MICTÓRIO C/ TRANSP. ATÉ CB. E CARGA | S40: Un | T40: 3
A41: S | B41: 3 | C41: S | D41: 0 | E41: 1 | F41: 1 | G41: 3 | H41: 0 | I41: 0 | J41: 0 | K41: 0 | L41: F | M41: Serviço | N41: Serviço | O41: 1.1.3.0.8. | P41: AGETOP | Q41: 20138 | R41: DEMOLIÇAO DE LAVATÓRIO C/ TRANSP. ATÉ CB. E CARGA | S41: Un | T41: 4
A42: S | B42: 3 | C42: S | D42: 0 | E42: 1 | F42: 1 | G42: 3 | H42: 0 | I42: 0 | J42: 0 | K42: 0 | L42: F | M42: Serviço | N42: Serviço | O42: 1.1.3.0.9. | P42: AGETOP | Q42: 20163 | R42: DEMOLIÇÃO DAS INSTALAÇÕES HIDROSANITÁRIAS E AFINS C/ TRANSP. ATÉ CB. E CARGA | S42: H | T42: 1
A43: 3 | B43: 3 | C43: 3 | D43: 12 | E43: 1 | F43: 1 | G43: 4 | H43: 0 | I43: 0 | J43: 36 | K43: 12 | L43: F | M43: Nível 3 | N43: Nível 3 | O43: 1.1.4. | P43: SINAPI | R43: 4. COZINHA | S43: -
A44: S | B44: 3 | C44: S | D44: 0 | E44: 1 | F44: 1 | G44: 4 | H44: 0 | I44: 0 | J44: 0 | K44: 0 | L44: F | M44: Serviço | N44: Serviço | O44: 1.1.4.0.1. | P44: AGETOP | Q44: 20118 | R44: DEM.ALVEN.TIJOLO S/REAP. C/TR.ATE CB. E CARGA | S44: m3 | T44: 2.7
A45: S | B45: 3 | C45: S | D45: 0 | E45: 1 | F45: 1 | G45: 4 | H45: 0 | I45: 0 | J45: 0 | K45: 0 | L45: F | M45: Serviço | N45: Serviço | O45: 1.1.4.0.2. | P45: AGETOP | Q45: 20121 | R45: DEM. MANUAL EM CONCR.SIMPLES C/TR.ATE CB.E CARGA (O.C.) | S45: m3 | T45: 4.073
A46: S | B46: 3 | C46: S | D46: 0 | E46: 1 | F46: 1 | G46: 4 | H46: 0 | I46: 0 | J46: 0 | K46: 0 | L46: F | M46: Serviço | N46: Serviço | O46: 1.1.4.0.3. | P46: AGETOP | Q46: 20112 | R46: DEM.PISO CERAM. INCLUS. RETIRADA DE CONTRAPISO SOBRE LASTRO CONC.C/TR.CB.E CARGA | S46: m2 | T46: 14.85
A47: S | B47: 3 | C47: S | D47: 0 | E47: 1 | F47: 1 | G47: 4 | H47: 0 | I47: 0 | J47: 0 | K47: 0 | L47: F | M47: Serviço | N47: Serviço | O47: 1.1.4.0.4. | P47: AGETOP | Q47: 20115 | R47: DEMOLIÇÃO DE REVESTIMENTOS COM AZULEJOS C/TRANSP.ATE CB. E CARGA | S47: m2 | T47: 88.35
A48: S | B48: 3 | C48: S | D48: 0 | E48: 1 | F48: 1 | G48: 4 | H48: 0 | I48: 0 | J48: 0 | K48: 0 | L48: F | M48: Serviço | N48: Serviço | O48: 1.1.4.0.5. | P48: AGETOP | Q48: 20139 | R48: DEMOLIÇAO DE BANCADAS C/ TRANSP. ATÉ CB. E CARGA | S48: m2 | T48: 10.86
A49: =CHOOSE(1+LOG(1+2*(ORÇAMENTO.Nivel="Nível 1")+4*(ORÇAMENTO.Nivel="Nível 2")+8*(ORÇAMENTO.Nivel="Nível 3")+16*(ORÇAMENTO.Nivel="Nível 4")+32*(ORÇAMENTO.Nivel="Serviço"),2),0,1,2,3,4,"S") -> S | B49: =IF(OR(C49="s",C49=0),OFFSET(B49,-1,0),C49) -> 3 | C49: =IF(OFFSET(C49,-1,0)="L",1,IF(OFFSET(C49,-1,0)=1,2,IF(OR(A49="s",A49=0),"S",IF(AND(OFFSET(C49,-1,0)=2,A49=4),3,IF(AND(OR(OFFSET(C49,-1,0)="s",OFFSET(C49,-1,0)=0),A49<>"s",A49>OFFSET(B49,-1,0)),OFFSET(B49,-1,0),A49))))) -> S | D49: =IF(OR(C49="S",C49=0),0,IF(ISERROR(K49),J49,SMALL(J49:K49,1))) -> 0 | E49: =IF($C49=1,OFFSET(E49,-1,0)+1,OFFSET(E49,-1,0)) -> 1 | F49: =IF($C49=1,0,IF($C49=2,OFFSET(F49,-1,0)+1,OFFSET(F49,-1,0))) -> 1 | G49: =IF(AND($C49<=2,$C49<>0),0,IF($C49=3,OFFSET(G49,-1,0)+1,OFFSET(G49,-1,0))) -> 4 | H49: =IF(AND($C49<=3,$C49<>0),0,IF($C49=4,OFFSET(H49,-1,0)+1,OFFSET(H49,-1,0))) -> 0 | I49: =IF(AND($C49<=4,$C49<>0),0,IF(AND($C49="S",$W49>0),OFFSET(I49,-1,0)+1,OFFSET(I49,-1,0))) -> 0 | J49: 0 | K49: 0 | L49: F | M49: Serviço | N49: Serviço | O49: 1.1.4.0.6. | P49: AGETOP | Q49: 20163 | R49: DEMOLIÇÃO DAS INSTALAÇÕES HIDROSANITÁRIAS E AFINS C/ TRANSP. ATÉ CB. E CARGA | S49: H | T49: 0.4
A50: S | B50: 3 | C50: S | D50: 0 | E50: 1 | F50: 1 | G50: 4 | H50: 0 | I50: 0 | J50: 0 | K50: 0 | L50: F | M50: Serviço | N50: Serviço | O50: 1.1.4.0.7. | P50: AGETOP | Q50: 20106 | R50: RETIRADA DE JANELAS OU PORTAIS C/ TRANSP. ATÉ CB. E CARGA | S50: m2 | T50: 21.44
A51: S | B51: 3 | C51: S | D51: 0 | E51: 1 | F51: 1 | G51: 4 | H51: 0 | I51: 0 | J51: 0 | K51: 0 | L51: F | M51: Serviço | N51: Serviço | O51: 1.1.4.0.8. | P51: AGETOP | Q51: 20147 | R51: DEMOLIÇÃO DE FORRO PVC INCLUSIVE ESTRUTURA DE SUSTENTAÇÃO C/ TRANSP. ATÉ CB. E CARGA | S51: m2 | T51: 146.61
A52: S | B52: 3 | C52: S | D52: 0 | E52: 1 | F52: 1 | G52: 4 | H52: 0 | I52: 0 | J52: 0 | K52: 0 | L52: F | M52: Serviço | N52: Serviço | O52: 1.1.4.0.9. | P52: AGETOP | Q52: 20137 | R52: DEMOLIÇAO BACIA SANITARIA C/ TRANSP. ATÉ CB. E CARGA | S52: Un | T52: 1
A53: S | B53: 3 | C53: S | D53: 0 | E53: 1 | F53: 1 | G53: 4 | H53: 0 | I53: 0 | J53: 0 | K53: 0 | L53: F | M53: Serviço | N53: Serviço | O53: 1.1.4.0.10. | P53: AGETOP | Q53: 20140 | R53: DEMOLIÇAO DE VÁLVULA DE DESCARGA C/ TRANSP. ATÉ CB. E CARGA | S53: Un | T53: 1
A54: S | B54: 3 | C54: S | D54: 0 | E54: 1 | F54: 1 | G54: 4 | H54: 0 | I54: 0 | J54: 0 | K54: 0 | L54: F | M54: Serviço | N54: Serviço | O54: 1.1.4.0.11. | P54: AGETOP | Q54: 20138 | R54: DEMOLIÇAO DE LAVATÓRIO C/ TRANSP. ATÉ CB. E CARGA | S54: Un | T54: 1
A55: 3 | B55: 3 | C55: 3 | D55: 2 | E55: 1 | F55: 1 | G55: 5 | H55: 0 | I55: 0 | J55: 24 | K55: 2 | L55: F | M55: Nível 3 | N55: Nível 3 | O55: 1.1.5. | P55: SINAPI | R55: 4.1 REFEITÓRIO | S55: -
A56: S | B56: 3 | C56: S | D56: 0 | E56: 1 | F56: 1 | G56: 5 | H56: 0 | I56: 0 | J56: 0 | K56: 0 | L56: F | M56: Serviço | N56: Serviço | O56: 1.1.5.0.1. | P56: AGETOP | Q56: 20115 | R56: DEMOLIÇÃO DE REVESTIMENTOS COM AZULEJOS C/TRANSP.ATE CB. E CARGA | S56: m2 | T56: 20
A57: 3 | B57: 3 | C57: 3 | D57: 2 | E57: 1 | F57: 1 | G57: 6 | H57: 0 | I57: 0 | J57: 22 | K57: 2 | L57: F | M57: Nível 3 | N57: Nível 3 | O57: 1.1.6. | P57: SINAPI | R57: 5. RAMPA | S57: -
A58: S | B58: 3 | C58: S | D58: 0 | E58: 1 | F58: 1 | G58: 6 | H58: 0 | I58: 0 | J58: 0 | K58: 0 | L58: F | M58: Serviço | N58: Serviço | O58: 1.1.6.0.1. | P58: AGETOP | Q58: 20112 | R58: DEM.PISO CERAM. INCLUS. RETIRADA DE CONTRAPISO SOBRE LASTRO CONC.C/TR.CB.E CARGA | S58: m2 | T58: 15.5
A59: 3 | B59: 3 | C59: 3 | D59: 9 | E59: 1 | F59: 1 | G59: 7 | H59: 0 | I59: 0 | J59: 20 | K59: 9 | L59: F | M59: Nível 3 | N59: Nível 3 | O59: 1.1.7. | P59: SINAPI | R59: 6. SANITÁRIOS FEMININO E MASCULINO | S59: -
A60: S | B60: 3 | C60: S | D60: 0 | E60: 1 | F60: 1 | G60: 7 | H60: 0 | I60: 0 | J60: 0 | K60: 0 | L60: F | M60: Serviço | N60: Serviço | O60: 1.1.7.0.1. | P60: AGETOP | Q60: 20118 | R60: DEM.ALVEN.TIJOLO S/REAP. C/TR.ATE CB. E CARGA | S60: m3 | T60: 3.48
A61: S | B61: 3 | C61: S | D61: 0 | E61: 1 | F61: 1 | G61: 7 | H61: 0 | I61: 0 | J61: 0 | K61: 0 | L61: F | M61: Serviço | N61: Serviço | O61: 1.1.7.0.2. | P61: AGETOP | Q61: 20106 | R61: RETIRADA DE JANELAS OU PORTAIS C/ TRANSP. ATÉ CB. E CARGA | S61: m2 | T61: 2.52
A62: S | B62: 3 | C62: S | D62: 0 | E62: 1 | F62: 1 | G62: 7 | H62: 0 | I62: 0 | J62: 0 | K62: 0 | L62: F | M62: Serviço | N62: Serviço | O62: 1.1.7.0.3. | P62: AGETOP | Q62: 20112 | R62: DEM.PISO CERAM. INCLUS. RETIRADA DE CONTRAPISO SOBRE LASTRO CONC.C/TR.CB.E CARGA | S62: m2 | T62: 64
A63: S | B63: 3 | C63: S | D63: 0 | E63: 1 | F63: 1 | G63: 7 | H63: 0 | I63: 0 | J63: 0 | K63: 0 | L63: F | M63: Serviço | N63: Serviço | O63: 1.1.7.0.4. | P63: AGETOP | Q63: 20115 | R63: DEMOLIÇÃO DE REVESTIMENTOS COM AZULEJOS C/TRANSP.ATE CB. E CARGA | S63: m2 | T63: 145
A64: S | B64: 3 | C64: S | D64: 0 | E64: 1 | F64: 1 | G64: 7 | H64: 0 | I64: 0 | J64: 0 | K64: 0 | L64: F | M64: Serviço | N64: Serviço | O64: 1.1.7.0.5. | P64: AGETOP | Q64: 20137 | R64: DEMOLIÇAO BACIA SANITARIA C/ TRANSP. ATÉ CB. E CARGA | S64: Un | T64: 12
A65: S | B65: 3 | C65: S | D65: 0 | E65: 1 | F65: 1 | G65: 7 | H65: 0 | I65: 0 | J65: 0 | K65: 0 | L65: F | M65: Serviço | N65: Serviço | O65: 1.1.7.0.6. | P65: AGETOP | Q65: 20146 | R65: DEMOLIÇÃO DE MICTÓRIO C/ TRANSP. ATÉ CB. E CARGA | S65: Un | T65: 3
A66: S | B66: 3 | C66: S | D66: 0 | E66: 1 | F66: 1 | G66: 7 | H66: 0 | I66: 0 | J66: 0 | K66: 0 | L66: F | M66: Serviço | N66: Serviço | O66: 1.1.7.0.7. | P66: AGETOP | Q66: 20138 | R66: DEMOLIÇAO DE LAVATÓRIO C/ TRANSP. ATÉ CB. E CARGA | S66: Un | T66: 9
A67: S | B67: 3 | C67: S | D67: 0 | E67: 1 | F67: 1 | G67: 7 | H67: 0 | I67: 0 | J67: 0 | K67: 0 | L67: F | M67: Serviço | N67: Serviço | O67: 1.1.7.0.8. | P67: AGETOP | Q67: 20163 | R67: DEMOLIÇÃO DAS INSTALAÇÕES HIDROSANITÁRIAS E AFINS C/ TRANSP. ATÉ CB. E CARGA | S67: H | T67: 0.5
A68: 3 | B68: 3 | C68: 3 | D68: 2 | E68: 1 | F68: 1 | G68: 8 | H68: 0 | I68: 0 | J68: 11 | K68: 2 | L68: F | M68: Nível 3 | N68: Nível 3 | O68: 1.1.8. | P68: SINAPI | R68: 7. PISO TÁTIL | S68: -
A69: S | B69: 3 | C69: S | D69: 0 | E69: 1 | F69: 1 | G69: 8 | H69: 0 | I69: 0 | J69: 0 | K69: 0 | L69: F | M69: Serviço | N69: Serviço | O69: 1.1.8.0.1. | P69: AGETOP | Q69: 67010 | R69: ESCARIFICAÇÃO MANUAL, CORTE DE CONCRETO ATÉ 3CM DE PROFUNDIDADE | S69: m3 | T69: 0.8068
A70: 3 | B70: 3 | C70: 3 | D70: 4 | E70: 1 | F70: 1 | G70: 9 | H70: 0 | I70: 0 | J70: 9 | K70: 4 | L70: F | M70: Nível 3 | N70: Nível 3 | O70: 1.1.9. | P70: SINAPI | R70: 8. CENTRAL DE GÁS | S70: -
A71: S | B71: 3 | C71: S | D71: 0 | E71: 1 | F71: 1 | G71: 9 | H71: 0 | I71: 0 | J71: 0 | K71: 0 | L71: F | M71: Serviço | N71: Serviço | O71: 1.1.9.0.1. | P71: AGETOP | Q71: 20118 | R71: DEM.ALVEN.TIJOLO S/REAP. C/TR.ATE CB. E CARGA | S71: m3 | T71: 0.5
A72: S | B72: 3 | C72: S | D72: 0 | E72: 1 | F72: 1 | G72: 9 | H72: 0 | I72: 0 | J72: 0 | K72: 0 | L72: F | M72: Serviço | N72: Serviço | O72: 1.1.9.0.2. | P72: AGETOP | Q72: 20121 | R72: DEM. MANUAL EM CONCR.SIMPLES C/TR.ATE CB.E CARGA (O.C.) | S72: m3 | T72: 0.06
A73: S | B73: 3 | C73: S | D73: 0 | E73: 1 | F73: 1 | G73: 9 | H73: 0 | I73: 0 | J73: 0 | K73: 0 | L73: F | M73: Serviço | N73: Serviço | O73: 1.1.9.0.3. | P73: AGETOP | Q73: 20106 | R73: RETIRADA DE JANELAS OU PORTAIS C/ TRANSP. ATÉ CB. E CARGA | S73: m2 | T73: 3.6
A74: 3 | B74: 3 | C74: 3 | D74: 2 | E74: 1 | F74: 1 | G74: 10 | H74: 0 | I74: 0 | J74: 5 | K74: 2 | L74: F | M74: Nível 3 | N74: Nível 3 | O74: 1.1.10. | P74: SINAPI | R74: 11. PREVENÇÃO E COMBATE A INCÊNDIO | S74: -
A75: S | B75: 3 | C75: S | D75: 0 | E75: 1 | F75: 1 | G75: 10 | H75: 0 | I75: 0 | J75: 0 | K75: 0 | L75: F | M75: Serviço | N75: Serviço | O75: 1.1.10.0.1. | P75: AGETOP | Q75: 20121 | R75: DEM. MANUAL EM CONCR.SIMPLES C/TR.ATE CB.E CARGA (O.C.) | S75: m3 | T75: 2.379
A76: 3 | B76: 3 | C76: 3 | D76: 3 | E76: 1 | F76: 1 | G76: 11 | H76: 0 | I76: 0 | J76: 3 | L76: F | M76: Nível 3 | N76: Nível 3 | O76: 1.1.11. | P76: SINAPI | R76: OUTROS | S76: -
A77: S | B77: 3 | C77: S | D77: 0 | E77: 1 | F77: 1 | G77: 11 | H77: 0 | I77: 0 | J77: 0 | K77: 0 | L77: F | M77: Serviço | N77: Serviço | O77: 1.1.11.0.1. | P77: AGETOP | Q77: 20162 | R77: DEMOLIÇÃO DAS INSTALAÇÕES ELÉTRICAS E AFINS C/ TRANSP. ATÉ CB. E CARGA | S77: H | T77: 5
A78: S | B78: 3 | C78: S | D78: 0 | E78: 1 | F78: 1 | G78: 11 | H78: 0 | I78: 0 | J78: 0 | K78: 0 | L78: F | M78: Serviço | N78: Serviço | O78: 1.1.11.0.2. | P78: AGETOP | Q78: 21301 | R78: PLACA DE OBRA PLOTADA EM CHAPA METÁLICA 26 , AFIXADA EM CAVALETES DE MADEIRA DE LEI (VIGOTAS 6X12CM) - PADRÃO GOINFRA | S78: m2 | T78: 7.5
A79: 2 | B79: 2 | C79: 2 | D79: 3 | E79: 1 | F79: 2 | G79: 0 | H79: 0 | I79: 0 | J79: 538 | K79: 3 | L79: F | M79: Nível 2 | N79: Nível 2 | O79: 1.2. | P79: AGETOP | R79: TRANSPORTES | S79: -
A80: S | B80: 2 | C80: S | D80: 0 | E80: 1 | F80: 2 | G80: 0 | H80: 0 | I80: 0 | J80: 0 | K80: 0 | L80: F | M80: Serviço | N80: Serviço | O80: 1.2.0.0.1. | P80: SINAPI | Q80: 72900 | R80: TRANSPORTE DE ENTULHO COM CAMINHAO BASCULANTE 6 M3, RODOVIA PAVIMENTADA, DMT 0,5 A 1,0 KM | S80: M3 | T80: 80.0067
A81: S | B81: 2 | C81: S | D81: 0 | E81: 1 | F81: 2 | G81: 0 | H81: 0 | I81: 0 | J81: 0 | K81: 0 | L81: F | M81: Serviço | N81: Serviço | O81: 1.2.0.0.2. | P81: SINAPI | Q81: 72897 | R81: CARGA MANUAL DE ENTULHO EM CAMINHAO BASCULANTE 6 M3 | S81: M3 | T81: 80.0067
A82: 2 | B82: 2 | C82: 2 | D82: 16 | E82: 1 | F82: 3 | G82: 0 | H82: 0 | I82: 0 | J82: 535 | K82: 16 | L82: F | M82: Nível 2 | N82: Nível 2 | O82: 1.3. | P82: AGETOP | R82: SERVIÇO EM TERRA | S82: -
A83: 3 | B83: 3 | C83: 3 | D83: 5 | E83: 1 | F83: 3 | G83: 1 | H83: 0 | I83: 0 | J83: =IF(OR($C83="S",$C83=0),0,MATCH(0,OFFSET($D83,1,$C83,ROW($C$928)-ROW($C83)),0)) -> 15 | K83: =IF(OR($C83="S",$C83=0),0,MATCH(OFFSET($D83,0,$C83)+1,OFFSET($D83,1,$C83,ROW($C$928)-ROW($C83)),0)) -> 5 | L83: F | M83: Nível 3 | N83: Nível 3 | O83: 1.3.1. | P83: SINAPI | R83: 1. REFORMA E AMPLIAÇÃO | S83: -
A84: S | B84: 3 | C84: S | D84: 0 | E84: 1 | F84: 3 | G84: 1 | H84: 0 | I84: 0 | J84: 0 | K84: 0 | L84: F | M84: Serviço | N84: Serviço | O84: 1.3.1.0.1. | P84: SINAPI | Q84: 79480 | R84: ESCAVACAO MECANICA CAMPO ABERTO EM SOLO EXCETO ROCHA ATE 2,00M PROFUNDIDADE | S84: M3 | T84: 96.5 | X84: Referência: AGETOP - 41004
A85: S | B85: 3 | C85: S | D85: 0 | E85: 1 | F85: 3 | G85: 1 | H85: 0 | I85: 0 | J85: 0 | K85: 0 | L85: F | M85: Serviço | N85: Serviço | O85: 1.3.1.0.2. | P85: AGETOP | Q85: 41005 | R85: CARGA MECANIZADA | S85: m3 | T85: 96.5
A86: S | B86: 3 | C86: S | D86: 0 | E86: 1 | F86: 3 | G86: 1 | H86: 0 | I86: 0 | J86: 0 | K86: 0 | L86: F | M86: Serviço | N86: Serviço | O86: 1.3.1.0.3. | P86: AGETOP | Q86: 41140 | R86: REGULARIZAÇÃO DO TERRENO SEM APILOAMENTO COM TRANSPORTE MANUAL DA TERRA ESCAVADA | S86: m2 | T86: 172
A87: S | B87: 3 | C87: S | D87: 0 | E87: 1 | F87: 3 | G87: 1 | H87: 0 | I87: 0 | J87: 0 | K87: 0 | L87: F | M87: Serviço | N87: Serviço | O87: 1.3.1.0.4. | P87: AGETOP | Q87: 41002 | R87: APILOAMENTO | S87: m2 | T87: 172
A88: 3 | B88: 3 | C88: 3 | D88: 4 | E88: 1 | F88: 3 | G88: 2 | H88: 0 | I88: 0 | J88: 10 | K88: 4 | L88: F | M88: Nível 3 | N88: Nível 3 | O88: 1.3.2. | P88: SINAPI | R88: 1.3 QUADRA DESCOBERTA | S88: -
A89: S | B89: 3 | C89: S | D89: 0 | E89: 1 | F89: 3 | G89: 2 | H89: 0 | I89: 0 | J89: 0 | K89: 0 | L89: F | M89: Serviço | N89: Serviço | O89: 1.3.2.0.1. | P89: AGETOP | Q89: 41140 | R89: REGULARIZAÇÃO DO TERRENO SEM APILOAMENTO COM TRANSPORTE MANUAL DA TERRA ESCAVADA | S89: m2 | T89: 781.06
A90: S | B90: 3 | C90: S | D90: 0 | E90: 1 | F90: 3 | G90: 2 | H90: 0 | I90: 0 | J90: 0 | K90: 0 | L90: F | M90: Serviço | N90: Serviço | O90: 1.3.2.0.2. | P90: AGETOP | Q90: 41010 | R90: TRANSPORTE COM LÂMINA ATE 100 M - (OBRAS CIVIS) | S90: m3 | T90: 7.65
A91: S | B91: 3 | C91: S | D91: 0 | E91: 1 | F91: 3 | G91: 2 | H91: 0 | I91: 0 | J91: 0 | K91: 0 | L91: F | M91: Serviço | N91: Serviço | O91: 1.3.2.0.3. | P91: AGETOP | Q91: 41002 | R91: APILOAMENTO | S91: m2 | T91: 707
A92: 3 | B92: 3 | C92: 3 | D92: 3 | E92: 1 | F92: 3 | G92: 3 | H92: 0 | I92: 0 | J92: 6 | K92: 3 | L92: F | M92: Nível 3 | N92: Nível 3 | O92: 1.3.3. | P92: SINAPI | R92: 2. RAMPA E ESCADA | S92: -
A93: S | B93: 3 | C93: S | D93: 0 | E93: 1 | F93: 3 | G93: 3 | H93: 0 | I93: 0 | J93: 0 | K93: 0 | L93: F | M93: Serviço | N93: Serviço | O93: 1.3.3.0.1. | P93: AGETOP | Q93: 41010 | R93: TRANSPORTE COM LÂMINA ATE 100 M - (OBRAS CIVIS) | S93: m3 | T93: 4.25
A94: S | B94: 3 | C94: S | D94: 0 | E94: 1 | F94: 3 | G94: 3 | H94: 0 | I94: 0 | J94: 0 | K94: 0 | L94: F | M94: Serviço | N94: Serviço | O94: 1.3.3.0.2. | P94: AGETOP | Q94: 41002 | R94: APILOAMENTO | S94: m2 | T94: 18
A95: 3 | B95: 3 | C95: 3 | D95: 3 | E95: 1 | F95: 3 | G95: 4 | H95: 0 | I95: 0 | J95: 3 | K95: 229 | L95: F | M95: Nível 3 | N95: Nível 3 | O95: 1.3.4. | P95: SINAPI | R95: 8. CENTRAL DE GÁS | S95: -
A96: S | B96: 3 | C96: S | D96: 0 | E96: 1 | F96: 3 | G96: 4 | H96: 0 | I96: 0 | J96: 0 | K96: 0 | L96: F | M96: Serviço | N96: Serviço | O96: 1.3.4.0.1. | P96: AGETOP | Q96: 41140 | R96: REGULARIZAÇÃO DO TERRENO SEM APILOAMENTO COM TRANSPORTE MANUAL DA TERRA ESCAVADA | S96: m2 | T96: 1.53
A97: S | B97: 3 | C97: S | D97: 0 | E97: 1 | F97: 3 | G97: 4 | H97: 0 | I97: 0 | J97: 0 | K97: 0 | L97: F | M97: Serviço | N97: Serviço | O97: 1.3.4.0.2. | P97: AGETOP | Q97: 41002 | R97: APILOAMENTO | S97: m2 | T97: 7.24
A98: 2 | B98: 2 | C98: 2 | D98: 63 | E98: 1 | F98: 4 | G98: 0 | H98: 0 | I98: 0 | J98: 519 | K98: 63 | L98: F | M98: Nível 2 | N98: Nível 2 | O98: 1.4. | P98: SINAPI | R98: ESTRUTURA | S98: -
A99: 3 | B99: 3 | C99: 3 | D99: 2 | E99: 1 | F99: 4 | G99: 1 | H99: 0 | I99: 0 | J99: 62 | K99: 2 | L99: F | M99: Nível 3 | N99: Nível 3 | O99: 1.4.1. | P99: SINAPI | R99: 4. COZINHA | S99: -
A100: S | B100: 3 | C100: S | D100: 0 | E100: 1 | F100: 4 | G100: 1 | H100: 0 | I100: 0 | J100: 0 | K100: 0 | L100: F | M100: Serviço | N100: Serviço | O100: 1.4.1.0.1. | P100: AGETOP | Q100: 60010 | R100: VERGA/CONTRAVERGA EM CONCRETO ARMADO FCK = 20 MPA | S100: m3 | T100: 0.63
A101: 3 | B101: 3 | C101: 3 | D101: 21 | E101: 1 | F101: 4 | G101: 2 | H101: 0 | I101: 0 | J101: 60 | K101: 21 | L101: F | M101: Nível 3 | N101: Nível 3 | O101: 1.4.2. | P101: SINAPI | R101: MURO DE ARRIMO | S101: -
A102: =CHOOSE(1+LOG(1+2*(ORÇAMENTO.Nivel="Nível 1")+4*(ORÇAMENTO.Nivel="Nível 2")+8*(ORÇAMENTO.Nivel="Nível 3")+16*(ORÇAMENTO.Nivel="Nível 4")+32*(ORÇAMENTO.Nivel="Serviço"),2),0,1,2,3,4,"S") -> 4 | B102: 4 | C102: 4 | D102: 4 | E102: 1 | F102: 4 | G102: 2 | H102: 1 | I102: 0 | J102: 20 | K102: 4 | L102: F | M102: Nível 4 | N102: Nível 4 | O102: 1.4.2.1. | P102: SINAPI | R102: ESTACAS | S102: -
A103: S | B103: 4 | C103: S | D103: 0 | E103: 1 | F103: 4 | G103: 2 | H103: 1 | I103: 0 | J103: 0 | K103: 0 | L103: F | M103: Serviço | N103: Serviço | O103: 1.4.2.1.1. | P103: AGETOP | Q103: 50302 | R103: ESTACA A TRADO DIAM.30 CM SEM FERRO | S103: M | T103: 9
A104: S | B104: 4 | C104: S | D104: 0 | E104: 1 | F104: 4 | G104: 2 | H104: 1 | I104: 0 | J104: 0 | K104: 0 | L104: F | M104: Serviço | N104: Serviço | O104: 1.4.2.1.2. | P104: AGETOP | Q104: 60314 | R104: ACO CA - 60 - 5,0 MM - (OBRAS CIVIS) | S104: Kg | T104: 7.18
A105: S | B105: 4 | C105: S | D105: 0 | E105: 1 | F105: 4 | G105: 2 | H105: 1 | I105: 0 | J105: 0 | K105: 0 | L105: F | M105: Serviço | N105: Serviço | O105: 1.4.2.1.3. | P105: AGETOP | Q105: 52005 | R105: ACO CA-50A - 10,0 MM (3/8") - (OBRAS CIVIS) | S105: Kg | T105: 40.54
A106: 4 | B106: 4 | C106: 4 | D106: 7 | E106: 1 | F106: 4 | G106: 2 | H106: 2 | I106: 0 | J106: 16 | K106: 7 | L106: F | M106: Nível 4 | N106: Nível 4 | O106: 1.4.2.2. | P106: SINAPI | R106: BLOCOS | S106: -
A107: S | B107: 4 | C107: S | D107: 0 | E107: 1 | F107: 4 | G107: 2 | H107: 2 | I107: 0 | J107: 0 | K107: 0 | L107: F | M107: Serviço | N107: Serviço | O107: 1.4.2.2.1. | P107: AGETOP | Q107: 40101 | R107: ESCAVACAO MANUAL DE VALAS < 1 MTS. (OBRAS CIVIS) | S107: m3 | T107: 1.85
A108: S | B108: 4 | C108: S | D108: 0 | E108: 1 | F108: 4 | G108: 2 | H108: 2 | I108: 0 | J108: 0 | K108: 0 | L108: F | M108: Serviço | N108: Serviço | O108: 1.4.2.2.2. | P108: AGETOP | Q108: 41002 | R108: APILOAMENTO | S108: m2 | T108: 3.24
A109: S | B109: 4 | C109: S | D109: 0 | E109: 1 | F109: 4 | G109: 2 | H109: 2 | I109: 0 | J109: 0 | K109: 0 | L109: F | M109: Serviço | N109: Serviço | O109: 1.4.2.2.3. | P109: SINAPI | Q109: 96616 | R109: LASTRO DE CONCRETO MAGRO, APLICADO EM BLOCOS DE COROAMENTO OU SAPATAS. AF_08/2017 | S109: M3 | T109: 0.16
A110: S | B110: 4 | C110: S | D110: 0 | E110: 1 | F110: 4 | G110: 2 | H110: 2 | I110: 0 | J110: 0 | K110: 0 | L110: F | M110: Serviço | N110: Serviço | O110: 1.4.2.2.4. | P110: AGETOP | Q110: 51030 | R110: PREPARO COM BETONEIRA E TRANSPORTE MANUAL DE CONCRETO FCK=25 MPA | S110: m3 | T110: 1.69
A111: S | B111: 4 | C111: S | D111: 0 | E111: 1 | F111: 4 | G111: 2 | H111: 2 | I111: 0 | J111: 0 | K111: 0 | L111: F | M111: Serviço | N111: Serviço | O111: 1.4.2.2.5. | P111: AGETOP | Q111: 51055 | R111: LANÇAMENTO/APLICAÇÃO/ADENSAMENTO MANUAL DE CONCRETO - (O.C.) | S111: m3 | T111: 1.69
A112: S | B112: 4 | C112: S | D112: 0 | E112: 1 | F112: 4 | G112: 2 | H112: 2 | I112: 0 | J112: 0 | K112: 0 | L112: F | M112: Serviço | N112: Serviço | O112: 1.4.2.2.6. | P112: AGETOP | Q112: 60314 | R112: ACO CA - 60 - 5,0 MM - (OBRAS CIVIS) | S112: Kg | T112: 20.9
A113: 4 | B113: 4 | C113: 4 | D113: 9 | E113: 1 | F113: 4 | G113: 2 | H113: 3 | I113: 0 | J113: 9 | K113: 146 | L113: F | M113: Nível 4 | N113: Nível 4 | O113: 1.4.2.3. | P113: SINAPI | R113: VIGAS BALDRAMES | S113: -
A114: S | B114: 4 | C114: S | D114: 0 | E114: 1 | F114: 4 | G114: 2 | H114: 3 | I114: 0 | J114: 0 | K114: 0 | L114: F | M114: Serviço | N114: Serviço | O114: 1.4.2.3.1. | P114: AGETOP | Q114: 40101 | R114: ESCAVACAO MANUAL DE VALAS < 1 MTS. (OBRAS CIVIS) | S114: m3 | T114: 1.72
A115: S | B115: 4 | C115: S | D115: 0 | E115: 1 | F115: 4 | G115: 2 | H115: 3 | I115: 0 | J115: 0 | K115: 0 | L115: F | M115: Serviço | N115: Serviço | O115: 1.4.2.3.2. | P115: AGETOP | Q115: 41002 | R115: APILOAMENTO | S115: m2 | T115: 2.46
A116: S | B116: 4 | C116: S | D116: 0 | E116: 1 | F116: 4 | G116: 2 | H116: 3 | I116: 0 | J116: 0 | K116: 0 | L116: F | M116: Serviço | N116: Serviço | O116: 1.4.2.3.3. | P116: AGETOP | Q116: 40902 | R116: REATERRO COM APILOAMENTO | S116: m3 | T116: 0.98
A117: S | B117: 4 | C117: S | D117: 0 | E117: 1 | F117: 4 | G117: 2 | H117: 3 | I117: 0 | J117: 0 | K117: 0 | L117: F | M117: Serviço | N117: Serviço | O117: 1.4.2.3.4. | P117: AGETOP | Q117: 60191 | R117: FORMA DE TABUA CINTA BALDRAME U=8 VEZES | S117: m2 | T117: 12.26
A118: S | B118: 4 | C118: S | D118: 0 | E118: 1 | F118: 4 | G118: 2 | H118: 3 | I118: 0 | J118: 0 | K118: 0 | L118: F | M118: Serviço | N118: Serviço | O118: 1.4.2.3.5. | P118: AGETOP | Q118: 51030 | R118: PREPARO COM BETONEIRA E TRANSPORTE MANUAL DE CONCRETO FCK=25 MPA | S118: m3 | T118: 0.74
A119: S | B119: 4 | C119: S | D119: 0 | E119: 1 | F119: 4 | G119: 2 | H119: 3 | I119: 0 | J119: 0 | K119: 0 | L119: F | M119: Serviço | N119: Serviço | O119: 1.4.2.3.6. | P119: AGETOP | Q119: 51055 | R119: LANÇAMENTO/APLICAÇÃO/ADENSAMENTO MANUAL DE CONCRETO - (O.C.) | S119: m3 | T119: 0.74
A120: S | B120: 4 | C120: S | D120: 0 | E120: 1 | F120: 4 | G120: 2 | H120: 3 | I120: 0 | J120: 0 | K120: 0 | L120: F | M120: Serviço | N120: Serviço | O120: 1.4.2.3.7. | P120: AGETOP | Q120: 52004 | R120: ACO CA 50-A - 8,0 MM (5/16") - (OBRAS CIVIS) | S120: Kg | T120: 26.36
A121: S | B121: 4 | C121: S | D121: 0 | E121: 1 | F121: 4 | G121: 2 | H121: 3 | I121: 0 | J121: 0 | K121: 0 | L121: F | M121: Serviço | N121: Serviço | O121: 1.4.2.3.8. | P121: AGETOP | Q121: 52014 | R121: ACO CA-60 - 5,0 MM - (OBRAS CIVIS) | S121: Kg | T121: 12.45
A122: 3 | B122: 3 | C122: 3 | D122: 21 | E122: 1 | F122: 4 | G122: 3 | H122: 0 | I122: 0 | J122: 39 | K122: 21 | L122: F | M122: Nível 3 | N122: Nível 3 | O122: 1.4.3. | P122: SINAPI | R122: COZINHA | S122: -
A123: 4 | B123: 4 | C123: 4 | D123: 4 | E123: 1 | F123: 4 | G123: 3 | H123: 1 | I123: 0 | J123: 20 | K123: 4 | L123: F | M123: Nível 4 | N123: Nível 4 | O123: 1.4.3.1. | P123: SINAPI | R123: ESTACAS | S123: -
A124: S | B124: 4 | C124: S | D124: 0 | E124: 1 | F124: 4 | G124: 3 | H124: 1 | I124: 0 | J124: 0 | K124: 0 | L124: F | M124: Serviço | N124: Serviço | O124: 1.4.3.1.1. | P124: AGETOP | Q124: 50302 | R124: ESTACA A TRADO DIAM.30 CM SEM FERRO | S124: M | T124: 24
A125: S | B125: 4 | C125: S | D125: 0 | E125: 1 | F125: 4 | G125: 3 | H125: 1 | I125: 0 | J125: 0 | K125: 0 | L125: F | M125: Serviço | N125: Serviço | O125: 1.4.3.1.2. | P125: AGETOP | Q125: 60314 | R125: ACO CA - 60 - 5,0 MM - (OBRAS CIVIS) | S125: Kg | T125: 27
A126: S | B126: 4 | C126: S | D126: 0 | E126: 1 | F126: 4 | G126: 3 | H126: 1 | I126: 0 | J126: 0 | K126: 0 | L126: F | M126: Serviço | N126: Serviço | O126: 1.4.3.1.3. | P126: AGETOP | Q126: 52005 | R126: ACO CA-50A - 10,0 MM (3/8") - (OBRAS CIVIS) | S126: Kg | T126: 72
A127: 4 | B127: 4 | C127: 4 | D127: 7 | E127: 1 | F127: 4 | G127: 3 | H127: 2 | I127: 0 | J127: 16 | K127: 7 | L127: F | M127: Nível 4 | N127: Nível 4 | O127: 1.4.3.2. | P127: SINAPI | R127: BLOCOS | S127: -
A128: S | B128: 4 | C128: S | D128: 0 | E128: 1 | F128: 4 | G128: 3 | H128: 2 | I128: 0 | J128: 0 | K128: 0 | L128: F | M128: Serviço | N128: Serviço | O128: 1.4.3.2.1. | P128: AGETOP | Q128: 40101 | R128: ESCAVACAO MANUAL DE VALAS < 1 MTS. (OBRAS CIVIS) | S128: m3 | T128: 2.46
A129: S | B129: 4 | C129: S | D129: 0 | E129: 1 | F129: 4 | G129: 3 | H129: 2 | I129: 0 | J129: 0 | K129: 0 | L129: F | M129: Serviço | N129: Serviço | O129: 1.4.3.2.2. | P129: AGETOP | Q129: 41002 | R129: APILOAMENTO | S129: m2 | T129: 4.32
A130: S | B130: 4 | C130: S | D130: 0 | E130: 1 | F130: 4 | G130: 3 | H130: 2 | I130: 0 | J130: 0 | K130: 0 | L130: F | M130: Serviço | N130: Serviço | O130: 1.4.3.2.3. | P130: SINAPI | Q130: 96616 | R130: LASTRO DE CONCRETO MAGRO, APLICADO EM BLOCOS DE COROAMENTO OU SAPATAS. AF_08/2017 | S130: M3 | T130: 0.21
A131: S | B131: 4 | C131: S | D131: 0 | E131: 1 | F131: 4 | G131: 3 | H131: 2 | I131: 0 | J131: 0 | K131: 0 | L131: F | M131: Serviço | N131: Serviço | O131: 1.4.3.2.4. | P131: AGETOP | Q131: 51030 | R131: PREPARO COM BETONEIRA E TRANSPORTE MANUAL DE CONCRETO FCK=25 MPA | S131: m3 | T131: 2.25
A132: S | B132: 4 | C132: S | D132: 0 | E132: 1 | F132: 4 | G132: 3 | H132: 2 | I132: 0 | J132: 0 | K132: 0 | L132: F | M132: Serviço | N132: Serviço | O132: 1.4.3.2.5. | P132: AGETOP | Q132: 51055 | R132: LANÇAMENTO/APLICAÇÃO/ADENSAMENTO MANUAL DE CONCRETO - (O.C.) | S132: m3 | T132: 2.25
A133: S | B133: 4 | C133: S | D133: 0 | E133: 1 | F133: 4 | G133: 3 | H133: 2 | I133: 0 | J133: 0 | K133: 0 | L133: F | M133: Serviço | N133: Serviço | O133: 1.4.3.2.6. | P133: AGETOP | Q133: 60314 | R133: ACO CA - 60 - 5,0 MM - (OBRAS CIVIS) | S133: Kg | T133: 27.81
A134: 4 | B134: 4 | C134: 4 | D134: 9 | E134: 1 | F134: 4 | G134: 3 | H134: 3 | I134: 0 | J134: 9 | K134: 125 | L134: F | M134: Nível 4 | N134: Nível 4 | O134: 1.4.3.3. | P134: SINAPI | R134: VIGAS BALDRAMES | S134: -
A135: S | B135: 4 | C135: S | D135: 0 | E135: 1 | F135: 4 | G135: 3 | H135: 3 | I135: 0 | J135: 0 | K135: 0 | L135: F | M135: Serviço | N135: Serviço | O135: 1.4.3.3.1. | P135: AGETOP | Q135: 40101 | R135: ESCAVACAO MANUAL DE VALAS < 1 MTS. (OBRAS CIVIS) | S135: m3 | T135: 2.52
A136: S | B136: 4 | C136: S | D136: 0 | E136: 1 | F136: 4 | G136: 3 | H136: 3 | I136: 0 | J136: 0 | K136: 0 | L136: F | M136: Serviço | N136: Serviço | O136: 1.4.3.3.2. | P136: AGETOP | Q136: 41002 | R136: APILOAMENTO | S136: m2 | T136: 3.08
A137: S | B137: 4 | C137: S | D137: 0 | E137: 1 | F137: 4 | G137: 3 | H137: 3 | I137: 0 | J137: 0 | K137: 0 | L137: F | M137: Serviço | N137: Serviço | O137: 1.4.3.3.3. | P137: AGETOP | Q137: 40902 | R137: REATERRO COM APILOAMENTO | S137: m3 | T137: 1.44
A138: S | B138: 4 | C138: S | D138: 0 | E138: 1 | F138: 4 | G138: 3 | H138: 3 | I138: 0 | J138: 0 | K138: 0 | L138: F | M138: Serviço | N138: Serviço | O138: 1.4.3.3.4. | P138: AGETOP | Q138: 60191 | R138: FORMA DE TABUA CINTA BALDRAME U=8 VEZES | S138: m2 | T138: 17.43
A139: S | B139: 4 | C139: S | D139: 0 | E139: 1 | F139: 4 | G139: 3 | H139: 3 | I139: 0 | J139: 0 | K139: 0 | L139: F | M139: Serviço | N139: Serviço | O139: 1.4.3.3.5. | P139: AGETOP | Q139: 51030 | R139: PREPARO COM BETONEIRA E TRANSPORTE MANUAL DE CONCRETO FCK=25 MPA | S139: m3 | T139: 1.08
A140: S | B140: 4 | C140: S | D140: 0 | E140: 1 | F140: 4 | G140: 3 | H140: 3 | I140: 0 | J140: 0 | K140: 0 | L140: F | M140: Serviço | N140: Serviço | O140: 1.4.3.3.6. | P140: AGETOP | Q140: 51055 | R140: LANÇAMENTO/APLICAÇÃO/ADENSAMENTO MANUAL DE CONCRETO - (O.C.) | S140: m3 | T140: 1.08
A141: S | B141: 4 | C141: S | D141: 0 | E141: 1 | F141: 4 | G141: 3 | H141: 3 | I141: 0 | J141: 0 | K141: 0 | L141: F | M141: Serviço | N141: Serviço | O141: 1.4.3.3.7. | P141: AGETOP | Q141: 52004 | R141: ACO CA 50-A - 8,0 MM (5/16") - (OBRAS CIVIS) | S141: Kg | T141: 33.36
A142: S | B142: 4 | C142: S | D142: 0 | E142: 1 | F142: 4 | G142: 3 | H142: 3 | I142: 0 | J142: 0 | K142: 0 | L142: F | M142: Serviço | N142: Serviço | O142: 1.4.3.3.8. | P142: AGETOP | Q142: 52014 | R142: ACO CA-60 - 5,0 MM - (OBRAS CIVIS) | S142: Kg | T142: 13
A143: 3 | B143: 3 | C143: 3 | D143: 18 | E143: 1 | F143: 4 | G143: 4 | H143: 0 | I143: 0 | J143: 18 | K143: 181 | L143: F | M143: Nível 3 | N143: Nível 3 | O143: 1.4.4. | P143: SINAPI | R143: BANHEIRO | S143: -
A144: 4 | B144: 4 | C144: 4 | D144: 7 | E144: 1 | F144: 4 | G144: 4 | H144: 1 | I144: 0 | J144: 17 | K144: 7 | L144: F | M144: Nível 4 | N144: Nível 4 | O144: 1.4.4.1. | P144: SINAPI | R144: BLOCOS | S144: -
A145: S | B145: 4 | C145: S | D145: 0 | E145: 1 | F145: 4 | G145: 4 | H145: 1 | I145: 0 | J145: 0 | K145: 0 | L145: F | M145: Serviço | N145: Serviço | O145: 1.4.4.1.1. | P145: AGETOP | Q145: 40101 | R145: ESCAVACAO MANUAL DE VALAS < 1 MTS. (OBRAS CIVIS) | S145: m3 | T145: 1.512
A146: S | B146: 4 | C146: S | D146: 0 | E146: 1 | F146: 4 | G146: 4 | H146: 1 | I146: 0 | J146: 0 | K146: 0 | L146: F | M146: Serviço | N146: Serviço | O146: 1.4.4.1.2. | P146: AGETOP | Q146: 41002 | R146: APILOAMENTO | S146: m2 | T146: 2.52
A147: S | B147: 4 | C147: S | D147: 0 | E147: 1 | F147: 4 | G147: 4 | H147: 1 | I147: 0 | J147: =IF(OR($C147="S",$C147=0),0,MATCH(0,OFFSET($D147,1,$C147,ROW($C$928)-ROW($C147)),0)) -> 0 | K147: =IF(OR($C147="S",$C147=0),0,MATCH(OFFSET($D147,0,$C147)+1,OFFSET($D147,1,$C147,ROW($C$928)-ROW($C147)),0)) -> 0 | L147: F | M147: Serviço | N147: Serviço | O147: 1.4.4.1.3. | P147: SINAPI | Q147: 96616 | R147: LASTRO DE CONCRETO MAGRO, APLICADO EM BLOCOS DE COROAMENTO OU SAPATAS. AF_08/2017 | S147: M3 | T147: 0.126
A148: S | B148: 4 | C148: S | D148: 0 | E148: 1 | F148: 4 | G148: 4 | H148: 1 | I148: 0 | J148: 0 | K148: 0 | L148: F | M148: Serviço | N148: Serviço | O148: 1.4.4.1.4. | P148: AGETOP | Q148: 51030 | R148: PREPARO COM BETONEIRA E TRANSPORTE MANUAL DE CONCRETO FCK=25 MPA | S148: m3 | T148: 1.31
A149: S | B149: 4 | C149: S | D149: 0 | E149: 1 | F149: 4 | G149: 4 | H149: 1 | I149: 0 | J149: 0 | K149: 0 | L149: F | M149: Serviço | N149: Serviço | O149: 1.4.4.1.5. | P149: AGETOP | Q149: 51055 | R149: LANÇAMENTO/APLICAÇÃO/ADENSAMENTO MANUAL DE CONCRETO - (O.C.) | S149: m3 | T149: 1.31
A150: S | B150: 4 | C150: S | D150: 0 | E150: 1 | F150: 4 | G150: 4 | H150: 1 | I150: 0 | J150: 0 | K150: 0 | L150: F | M150: Serviço | N150: Serviço | O150: 1.4.4.1.6. | P150: AGETOP | Q150: 60314 | R150: ACO CA - 60 - 5,0 MM - (OBRAS CIVIS) | S150: Kg | T150: 16.27272727
A151: 4 | B151: 4 | C151: 4 | D151: 10 | E151: 1 | F151: 4 | G151: 4 | H151: 2 | I151: 0 | J151: 10 | K151: 37 | L151: F | M151: Nível 4 | N151: Nível 4 | O151: 1.4.4.2. | P151: SINAPI | R151: VIGAS BALDRAMES | S151: -
A152: S | B152: =IF(OR(C152="s",C152=0),OFFSET(B152,-1,0),C152) -> 4 | C152: =IF(OFFSET(C152,-1,0)="L",1,IF(OFFSET(C152,-1,0)=1,2,IF(OR(A152="s",A152=0),"S",IF(AND(OFFSET(C152,-1,0)=2,A152=4),3,IF(AND(OR(OFFSET(C152,-1,0)="s",OFFSET(C152,-1,0)=0),A152<>"s",A152>OFFSET(B152,-1,0)),OFFSET(B152,-1,0),A152))))) -> S | D152: =IF(OR(C152="S",C152=0),0,IF(ISERROR(K152),J152,SMALL(J152:K152,1))) -> 0 | E152: =IF($C152=1,OFFSET(E152,-1,0)+1,OFFSET(E152,-1,0)) -> 1 | F152: =IF($C152=1,0,IF($C152=2,OFFSET(F152,-1,0)+1,OFFSET(F152,-1,0))) -> 4 | G152: =IF(AND($C152<=2,$C152<>0),0,IF($C152=3,OFFSET(G152,-1,0)+1,OFFSET(G152,-1,0))) -> 4 | H152: =IF(AND($C152<=3,$C152<>0),0,IF($C152=4,OFFSET(H152,-1,0)+1,OFFSET(H152,-1,0))) -> 2 | I152: =IF(AND($C152<=4,$C152<>0),0,IF(AND($C152="S",$W152>0),OFFSET(I152,-1,0)+1,OFFSET(I152,-1,0))) -> 0 | J152: 0 | K152: 0 | L152: F | M152: Serviço | N152: Serviço | O152: 1.4.4.2.1. | P152: AGETOP | Q152: 40101 | R152: ESCAVACAO MANUAL DE VALAS < 1 MTS. (OBRAS CIVIS) | S152: m3 | T152: 1.306666667
A153: S | B153: 4 | C153: S | D153: 0 | E153: 1 | F153: 4 | G153: 4 | H153: 2 | I153: 0 | J153: 0 | K153: 0 | L153: F | M153: Serviço | N153: Serviço | O153: 1.4.4.2.2. | P153: AGETOP | Q153: 41002 | R153: APILOAMENTO | S153: m2 | T153: 2.24
A154: S | B154: 4 | C154: S | D154: 0 | E154: 1 | F154: 4 | G154: 4 | H154: 2 | I154: 0 | J154: 0 | K154: 0 | L154: F | M154: Serviço | N154: Serviço | O154: 1.4.4.2.3. | P154: AGETOP | Q154: 40902 | R154: REATERRO COM APILOAMENTO | S154: m3 | T154: 0.7466666667
A155: S | B155: 4 | C155: S | D155: 0 | E155: 1 | F155: 4 | G155: 4 | H155: 2 | I155: 0 | J155: 0 | K155: 0 | L155: F | M155: Serviço | N155: Serviço | O155: 1.4.4.2.4. | P155: AGETOP | Q155: 60191 | R155: FORMA DE TABUA CINTA BALDRAME U=8 VEZES | S155: m2 | T155: 9.76
A156: S | B156: 4 | C156: S | D156: 0 | E156: 1 | F156: 4 | G156: 4 | H156: 2 | I156: 0 | J156: 0 | K156: 0 | L156: F | M156: Serviço | N156: Serviço | O156: 1.4.4.2.5. | P156: AGETOP | Q156: 51030 | R156: PREPARO COM BETONEIRA E TRANSPORTE MANUAL DE CONCRETO FCK=25 MPA | S156: m3 | T156: 0.56
A157: S | B157: 4 | C157: S | D157: 0 | E157: 1 | F157: 4 | G157: 4 | H157: 2 | I157: 0 | J157: 0 | K157: 0 | L157: F | M157: Serviço | N157: Serviço | O157: 1.4.4.2.6. | P157: AGETOP | Q157: 51055 | R157: LANÇAMENTO/APLICAÇÃO/ADENSAMENTO MANUAL DE CONCRETO - (O.C.) | S157: m3 | T157: 0.56
A158: S | B158: 4 | C158: S | D158: 0 | E158: 1 | F158: 4 | G158: 4 | H158: 2 | I158: 0 | J158: 0 | K158: 0 | L158: F | M158: Serviço | N158: Serviço | O158: 1.4.4.2.7. | P158: AGETOP | Q158: 52004 | R158: ACO CA 50-A - 8,0 MM (5/16") - (OBRAS CIVIS) | S158: Kg | T158: 17.18181818
A159: S | B159: 4 | C159: S | D159: 0 | E159: 1 | F159: 4 | G159: 4 | H159: 2 | I159: 0 | J159: 0 | K159: 0 | L159: F | M159: Serviço | N159: Serviço | O159: 1.4.4.2.8. | P159: AGETOP | Q159: 52005 | R159: ACO CA-50A - 10,0 MM (3/8") - (OBRAS CIVIS) | S159: Kg | T159: 11
A160: S | B160: 4 | C160: S | D160: 0 | E160: 1 | F160: 4 | G160: 4 | H160: 2 | I160: 0 | J160: 0 | K160: 0 | L160: F | M160: Serviço | N160: Serviço | O160: 1.4.4.2.9. | P160: AGETOP | Q160: 52014 | R160: ACO CA-60 - 5,0 MM - (OBRAS CIVIS) | S160: Kg | T160: 11.36363636
A161: 2 | B161: 2 | C161: 2 | D161: 44 | E161: 1 | F161: 5 | G161: 0 | H161: 0 | I161: 0 | J161: 456 | K161: 44 | L161: F | M161: Nível 2 | N161: Nível 2 | O161: 1.5. | P161: SINAPI | R161: ESTRUTURA | S161: -
A162: 3 | B162: 3 | C162: 3 | D162: 13 | E162: 1 | F162: 5 | G162: 1 | H162: 0 | I162: 0 | J162: 43 | K162: 13 | L162: F | M162: Nível 3 | N162: Nível 3 | O162: 1.5.1. | P162: SINAPI | R162: MURO DE ARRIMO | S162: -
A163: 4 | B163: 4 | C163: 4 | D163: 6 | E163: 1 | F163: 5 | G163: 1 | H163: 1 | I163: 0 | J163: 12 | K163: 6 | L163: F | M163: Nível 4 | N163: Nível 4 | O163: 1.5.1.1. | P163: SINAPI | R163: PILARES | S163: -
A164: S | B164: 4 | C164: S | D164: 0 | E164: 1 | F164: 5 | G164: 1 | H164: 1 | I164: 0 | J164: 0 | K164: 0 | L164: F | M164: Serviço | N164: Serviço | O164: 1.5.1.1.1. | P164: AGETOP | Q164: 60209 | R164: FORMA CH.COMPENSADA 12MM-VIGA/PILAR U=4V - (OBRAS CIVIS | S164: m2 | T164: 16.42
A165: S | B165: 4 | C165: S | D165: 0 | E165: 1 | F165: 5 | G165: 1 | H165: 1 | I165: 0 | J165: 0 | K165: 0 | L165: F | M165: Serviço | N165: Serviço | O165: 1.5.1.1.2. | P165: AGETOP | Q165: 51030 | R165: PREPARO COM BETONEIRA E TRANSPORTE MANUAL DE CONCRETO FCK=25 MPA | S165: m3 | T165: 0.77
A166: =CHOOSE(1+LOG(1+2*(ORÇAMENTO.Nivel="Nível 1")+4*(ORÇAMENTO.Nivel="Nível 2")+8*(ORÇAMENTO.Nivel="Nível 3")+16*(ORÇAMENTO.Nivel="Nível 4")+32*(ORÇAMENTO.Nivel="Serviço"),2),0,1,2,3,4,"S") -> S | B166: 4 | C166: S | D166: 0 | E166: 1 | F166: 5 | G166: 1 | H166: 1 | I166: 0 | J166: 0 | K166: 0 | L166: F | M166: Serviço | N166: Serviço | O166: 1.5.1.1.3. | P166: AGETOP | Q166: 51055 | R166: LANÇAMENTO/APLICAÇÃO/ADENSAMENTO MANUAL DE CONCRETO - (O.C.) | S166: m3 | T166: 0.77
A167: S | B167: 4 | C167: S | D167: 0 | E167: 1 | F167: 5 | G167: 1 | H167: 1 | I167: 0 | J167: 0 | K167: 0 | L167: F | M167: Serviço | N167: Serviço | O167: 1.5.1.1.4. | P167: AGETOP | Q167: 60305 | R167: ACO CA-50A - 10,0 MM (3/8") - (OBRAS CIVIS) | S167: Kg | T167: 61.45
A168: S | B168: 4 | C168: S | D168: 0 | E168: 1 | F168: 5 | G168: 1 | H168: 1 | I168: 0 | J168: 0 | K168: 0 | L168: F | M168: Serviço | N168: Serviço | O168: 1.5.1.1.5. | P168: AGETOP | Q168: 60314 | R168: ACO CA - 60 - 5,0 MM - (OBRAS CIVIS) | S168: Kg | T168: 22.09
A169: 4 | B169: 4 | C169: 4 | D169: 6 | E169: 1 | F169: 5 | G169: 1 | H169: 2 | I169: 0 | J169: 6 | K169: 19 | L169: F | M169: Nível 4 | N169: Nível 4 | O169: 1.5.1.2. | P169: SINAPI | R169: VIGAS TOPO | S169: -
A170: S | B170: 4 | C170: S | D170: 0 | E170: 1 | F170: 5 | G170: 1 | H170: 2 | I170: 0 | J170: 0 | K170: 0 | L170: F | M170: Serviço | N170: Serviço | O170: 1.5.1.2.1. | P170: AGETOP | Q170: 60209 | R170: FORMA CH.COMPENSADA 12MM-VIGA/PILAR U=4V - (OBRAS CIVIS | S170: m2 | T170: 12.26
A171: S | B171: 4 | C171: S | D171: 0 | E171: 1 | F171: 5 | G171: 1 | H171: 2 | I171: 0 | J171: 0 | K171: 0 | L171: F | M171: Serviço | N171: Serviço | O171: 1.5.1.2.2. | P171: AGETOP | Q171: 51030 | R171: PREPARO COM BETONEIRA E TRANSPORTE MANUAL DE CONCRETO FCK=25 MPA | S171: m3 | T171: 0.74
A172: S | B172: 4 | C172: S | D172: 0 | E172: 1 | F172: 5 | G172: 1 | H172: 2 | I172: 0 | J172: 0 | K172: 0 | L172: F | M172: Serviço | N172: Serviço | O172: 1.5.1.2.3. | P172: AGETOP | Q172: 51055 | R172: LANÇAMENTO/APLICAÇÃO/ADENSAMENTO MANUAL DE CONCRETO - (O.C.) | S172: m3 | T172: 0.74
A173: S | B173: 4 | C173: S | D173: 0 | E173: 1 | F173: 5 | G173: 1 | H173: 2 | I173: 0 | J173: 0 | K173: 0 | L173: F | M173: Serviço | N173: Serviço | O173: 1.5.1.2.4. | P173: AGETOP | Q173: 60304 | R173: ACO CA-50 A - 8,0 MM (5/16") - (OBRAS CIVIS) | S173: Kg | T173: 26.36
A174: S | B174: 4 | C174: S | D174: 0 | E174: 1 | F174: 5 | G174: 1 | H174: 2 | I174: 0 | J174: 0 | K174: 0 | L174: F | M174: Serviço | N174: Serviço | O174: 1.5.1.2.5. | P174: AGETOP | Q174: 60314 | R174: ACO CA - 60 - 5,0 MM - (OBRAS CIVIS) | S174: Kg | T174: 12.45
A175: 3 | B175: 3 | C175: 3 | D175: 17 | E175: 1 | F175: 5 | G175: 2 | H175: 0 | I175: 0 | J175: 30 | K175: 17 | L175: F | M175: Nível 3 | N175: Nível 3 | O175: 1.5.2. | P175: SINAPI | R175: COZINHA | S175: -
A176: 4 | B176: 4 | C176: 4 | D176: 6 | E176: 1 | F176: 5 | G176: 2 | H176: 1 | I176: 0 | J176: 16 | K176: 6 | L176: F | M176: Nível 4 | N176: Nível 4 | O176: 1.5.2.1. | P176: SINAPI | R176: PILARES | S176: -
A177: S | B177: 4 | C177: S | D177: 0 | E177: 1 | F177: 5 | G177: 2 | H177: 1 | I177: 0 | J177: 0 | K177: 0 | L177: F | M177: Serviço | N177: Serviço | O177: 1.5.2.1.1. | P177: AGETOP | Q177: 60209 | R177: FORMA CH.COMPENSADA 12MM-VIGA/PILAR U=4V - (OBRAS CIVIS | S177: m2 | T177: 39.6
A178: S | B178: 4 | C178: S | D178: 0 | E178: 1 | F178: 5 | G178: 2 | H178: 1 | I178: 0 | J178: 0 | K178: 0 | L178: F | M178: Serviço | N178: Serviço | O178: 1.5.2.1.2. | P178: AGETOP | Q178: 51030 | R178: PREPARO COM BETONEIRA E TRANSPORTE MANUAL DE CONCRETO FCK=25 MPA | S178: m3 | T178: 1.95
A179: S | B179: 4 | C179: S | D179: 0 | E179: 1 | F179: 5 | G179: 2 | H179: 1 | I179: 0 | J179: 0 | K179: 0 | L179: F | M179: Serviço | N179: Serviço | O179: 1.5.2.1.3. | P179: AGETOP | Q179: 51055 | R179: LANÇAMENTO/APLICAÇÃO/ADENSAMENTO MANUAL DE CONCRETO - (O.C.) | S179: m3 | T179: 1.95
A180: S | B180: 4 | C180: S | D180: 0 | E180: 1 | F180: 5 | G180: 2 | H180: 1 | I180: 0 | J180: 0 | K180: 0 | L180: F | M180: Serviço | N180: Serviço | O180: 1.5.2.1.4. | P180: AGETOP | Q180: 60305 | R180: ACO CA-50A - 10,0 MM (3/8") - (OBRAS CIVIS) | S180: Kg | T180: 132.9
A181: S | B181: 4 | C181: S | D181: 0 | E181: 1 | F181: 5 | G181: 2 | H181: 1 | I181: 0 | J181: 0 | K181: 0 | L181: F | M181: Serviço | N181: Serviço | O181: 1.5.2.1.5. | P181: AGETOP | Q181: 60314 | R181: ACO CA - 60 - 5,0 MM - (OBRAS CIVIS) | S181: Kg | T181: 48.72
A182: 4 | B182: 4 | C182: 4 | D182: 6 | E182: 1 | F182: 5 | G182: 2 | H182: 2 | I182: 0 | J182: 10 | K182: 6 | L182: F | M182: Nível 4 | N182: Nível 4 | O182: 1.5.2.2. | P182: SINAPI | R182: VIGAS DE COBERTURA | S182: -
A183: S | B183: 4 | C183: S | D183: 0 | E183: 1 | F183: 5 | G183: 2 | H183: 2 | I183: 0 | J183: 0 | K183: 0 | L183: F | M183: Serviço | N183: Serviço | O183: 1.5.2.2.1. | P183: AGETOP | Q183: 60209 | R183: FORMA CH.COMPENSADA 12MM-VIGA/PILAR U=4V - (OBRAS CIVIS | S183: m2 | T183: 16.21
A184: S | B184: 4 | C184: S | D184: 0 | E184: 1 | F184: 5 | G184: 2 | H184: 2 | I184: 0 | J184: 0 | K184: 0 | L184: F | M184: Serviço | N184: Serviço | O184: 1.5.2.2.2. | P184: AGETOP | Q184: 51030 | R184: PREPARO COM BETONEIRA E TRANSPORTE MANUAL DE CONCRETO FCK=25 MPA | S184: m3 | T184: 0.94
A185: S | B185: 4 | C185: S | D185: 0 | E185: 1 | F185: 5 | G185: 2 | H185: 2 | I185: 0 | J185: 0 | K185: 0 | L185: F | M185: Serviço | N185: Serviço | O185: 1.5.2.2.3. | P185: AGETOP | Q185: 51055 | R185: LANÇAMENTO/APLICAÇÃO/ADENSAMENTO MANUAL DE CONCRETO - (O.C.) | S185: m3 | T185: 0.94
A186: S | B186: 4 | C186: S | D186: 0 | E186: 1 | F186: 5 | G186: 2 | H186: 2 | I186: 0 | J186: 0 | K186: 0 | L186: F | M186: Serviço | N186: Serviço | O186: 1.5.2.2.4. | P186: AGETOP | Q186: 60304 | R186: ACO CA-50 A - 8,0 MM (5/16") - (OBRAS CIVIS) | S186: Kg | T186: 40.72
A187: S | B187: 4 | C187: S | D187: 0 | E187: 1 | F187: 5 | G187: 2 | H187: 2 | I187: 0 | J187: 0 | K187: 0 | L187: F | M187: Serviço | N187: Serviço | O187: 1.5.2.2.5. | P187: AGETOP | Q187: 60314 | R187: ACO CA - 60 - 5,0 MM - (OBRAS CIVIS) | S187: Kg | T187: 19.18
A188: 4 | B188: 4 | C188: 4 | D188: 4 | E188: 1 | F188: 5 | G188: 2 | H188: 3 | I188: 0 | J188: 4 | K188: 71 | L188: F | M188: Nível 4 | N188: Nível 4 | O188: 1.5.2.3. | P188: SINAPI | R188: CANALETA | S188: -
A189: S | B189: 4 | C189: S | D189: 0 | E189: 1 | F189: 5 | G189: 2 | H189: 3 | I189: 0 | J189: 0 | K189: 0 | L189: F | M189: Serviço | N189: Serviço | O189: 1.5.2.3.1. | P189: AGETOP | Q189: 51030 | R189: PREPARO COM BETONEIRA E TRANSPORTE MANUAL DE CONCRETO FCK=25 MPA | S189: m3 | T189: 0.49
A190: S | B190: 4 | C190: S | D190: 0 | E190: 1 | F190: 5 | G190: 2 | H190: 3 | I190: 0 | J190: 0 | K190: 0 | L190: F | M190: Serviço | N190: Serviço | O190: 1.5.2.3.2. | P190: AGETOP | Q190: 51055 | R190: LANÇAMENTO/APLICAÇÃO/ADENSAMENTO MANUAL DE CONCRETO - (O.C.) | S190: m3 | T190: 0.49
A191: S | B191: 4 | C191: S | D191: 0 | E191: 1 | F191: 5 | G191: 2 | H191: 3 | I191: 0 | J191: 0 | K191: 0 | L191: F | M191: Serviço | N191: Serviço | O191: 1.5.2.3.3. | P191: AGETOP | Q191: 60304 | R191: ACO CA-50 A - 8,0 MM (5/16") - (OBRAS CIVIS) | S191: Kg | T191: 16.53
A192: 3 | B192: 3 | C192: 3 | D192: 13 | E192: 1 | F192: 5 | G192: 3 | H192: 0 | I192: 0 | J192: 13 | K192: 122 | L192: F | M192: Nível 3 | N192: Nível 3 | O192: 1.5.3. | P192: SINAPI | R192: BANHEIRO | S192: -
A193: 4 | B193: 4 | C193: 4 | D193: 6 | E193: 1 | F193: 5 | G193: 3 | H193: 1 | I193: 0 | J193: 12 | K193: 6 | L193: F | M193: Nível 4 | N193: Nível 4 | O193: 1.5.3.1. | P193: SINAPI | R193: PILARES | S193: -
A194: S | B194: 4 | C194: S | D194: 0 | E194: 1 | F194: 5 | G194: 3 | H194: 1 | I194: 0 | J194: 0 | K194: 0 | L194: F | M194: Serviço | N194: Serviço | O194: 1.5.3.1.1. | P194: AGETOP | Q194: 60209 | R194: FORMA CH.COMPENSADA 12MM-VIGA/PILAR U=4V - (OBRAS CIVIS | S194: m2 | T194: 20.72
A195: S | B195: 4 | C195: S | D195: 0 | E195: 1 | F195: 5 | G195: 3 | H195: 1 | I195: 0 | J195: 0 | K195: 0 | L195: F | M195: Serviço | N195: Serviço | O195: 1.5.3.1.2. | P195: AGETOP | Q195: 51030 | R195: PREPARO COM BETONEIRA E TRANSPORTE MANUAL DE CONCRETO FCK=25 MPA | S195: m3 | T195: 0.99
A196: S | B196: 4 | C196: S | D196: 0 | E196: 1 | F196: 5 | G196: 3 | H196: 1 | I196: 0 | J196: 0 | K196: 0 | L196: F | M196: Serviço | N196: Serviço | O196: 1.5.3.1.3. | P196: AGETOP | Q196: 51055 | R196: LANÇAMENTO/APLICAÇÃO/ADENSAMENTO MANUAL DE CONCRETO - (O.C.) | S196: m3 | T196: 0.99
A197: S | B197: 4 | C197: S | D197: 0 | E197: 1 | F197: 5 | G197: 3 | H197: 1 | I197: 0 | J197: 0 | K197: 0 | L197: F | M197: Serviço | N197: Serviço | O197: 1.5.3.1.4. | P197: AGETOP | Q197: 60305 | R197: ACO CA-50A - 10,0 MM (3/8") - (OBRAS CIVIS) | S197: Kg | T197: 82.63636364
A198: S | B198: 4 | C198: S | D198: 0 | E198: 1 | F198: 5 | G198: 3 | H198: 1 | I198: 0 | J198: 0 | K198: 0 | L198: F | M198: Serviço | N198: Serviço | O198: 1.5.3.1.5. | P198: AGETOP | Q198: 60314 | R198: ACO CA - 60 - 5,0 MM - (OBRAS CIVIS) | S198: Kg | T198: 26.72727273
A199: 4 | B199: 4 | C199: 4 | D199: 6 | E199: 1 | F199: 5 | G199: 3 | H199: 2 | I199: 0 | J199: 6 | K199: 55 | L199: F | M199: Nível 4 | N199: Nível 4 | O199: 1.5.3.2. | P199: SINAPI | R199: VIGAS DE COBERTURA | S199: -
A200: S | B200: 4 | C200: S | D200: 0 | E200: 1 | F200: 5 | G200: 3 | H200: 2 | I200: 0 | J200: 0 | K200: 0 | L200: F | M200: Serviço | N200: Serviço | O200: 1.5.3.2.1. | P200: AGETOP | Q200: 60209 | R200: FORMA CH.COMPENSADA 12MM-VIGA/PILAR U=4V - (OBRAS CIVIS | S200: m2 | T200: 8.16
A201: S | B201: 4 | C201: S | D201: 0 | E201: 1 | F201: 5 | G201: 3 | H201: 2 | I201: 0 | J201: 0 | K201: 0 | L201: F | M201: Serviço | N201: Serviço | O201: 1.5.3.2.2. | P201: AGETOP | Q201: 51030 | R201: PREPARO COM BETONEIRA E TRANSPORTE MANUAL DE CONCRETO FCK=25 MPA | S201: m3 | T201: 0.47
A202: S | B202: 4 | C202: S | D202: 0 | E202: 1 | F202: 5 | G202: 3 | H202: 2 | I202: 0 | J202: 0 | K202: 0 | L202: F | M202: Serviço | N202: Serviço | O202: 1.5.3.2.3. | P202: AGETOP | Q202: 51055 | R202: LANÇAMENTO/APLICAÇÃO/ADENSAMENTO MANUAL DE CONCRETO - (O.C.) | S202: m3 | T202: 0.47
A203: S | B203: 4 | C203: S | D203: 0 | E203: 1 | F203: 5 | G203: 3 | H203: 2 | I203: 0 | J203: 0 | K203: 0 | L203: F | M203: Serviço | N203: Serviço | O203: 1.5.3.2.4. | P203: AGETOP | Q203: 60304 | R203: ACO CA-50 A - 8,0 MM (5/16") - (OBRAS CIVIS) | S203: Kg | T203: 20.27272727
A204: S | B204: 4 | C204: S | D204: 0 | E204: 1 | F204: 5 | G204: 3 | H204: 2 | I204: 0 | J204: 0 | K204: 0 | L204: F | M204: Serviço | N204: Serviço | O204: 1.5.3.2.5. | P204: AGETOP | Q204: 60314 | R204: ACO CA - 60 - 5,0 MM - (OBRAS CIVIS) | S204: Kg | T204: 9.909090909
A205: 2 | B205: 2 | C205: 2 | D205: 30 | E205: 1 | F205: 6 | G205: 0 | H205: 0 | I205: 0 | J205: 412 | K205: 30 | L205: F | M205: Nível 2 | N205: Nível 2 | O205: 1.6. | R205: INSTALAÇÕES ELÉTRICAS | S205: -
A206: 3 | B206: 3 | C206: 3 | D206: 16 | E206: 1 | F206: 6 | G206: 1 | H206: 0 | I206: 0 | J206: 29 | K206: 16 | L206: F | M206: Nível 3 | N206: Nível 3 | O206: 1.6.1. | P206: SINAPI | R206: IMPLANTAÇÃO | S206: -
... 795 more rows

Sheet Resumo
B3: UNIDADE ESCOLAR | G3: CÓDIGO INEP
B4: =Orçamento!$O$4 -> CENTRO DE ENSINO EM PERÍODO INTEGRAL SYLVIO DE MELLO | G4: =Orçamento!V4 -> 52069206
B6: OBRA | G6: CIDADE
B7: =Orçamento!$O$7 -> REFORMA | G7: =Orçamento!$V$7 -> MORRINHOS
B9: ENDEREÇO | G9: CRE
B10: =Orçamento!$R$10 -> RUA PIAUI 386, CENTRO, CEP:75650-000 | G10: =Orçamento!$O$10 -> MORRINHOS
B12: REFERÊNCIA | D12: DATA | G12: ÁREA TOTAL CONSTRUÍDA (M²)
B13: =CONCATENATE("AGETOP E SINAPI - ",Orçamento!$T$10) -> AGETOP E SINAPI - DESONERADA | D13: =Orçamento!$S$7 -> 2020-07-07 | G13: =Orçamento!$V$13 -> 3042.44
A14: FILTRO
B15: RESUMO GERAL DO ORÇAMENTO
A16: ↓ | B16: ITEM | C16: DESCRIÇÃO DOS SERVIÇOS | E16: UNID | F16: QUANT | G16: PREÇO SEM BDI | H16: PREÇO COM BDI | I16: PARTICIP. (%)
A17: =IF(H17>0,"F","") ->  | B17: 1. | C17: =Orçamento!$P981 -> REFORMA | E17: =IF(C17<>"","UN","") -> UN | F17: =IF(C17<>"",1,"") -> 1 | G17: =IFERROR(Orçamento!S981,"-") -> 0 | H17: =IFERROR(Orçamento!V981,"") -> 0 | I17: =Orçamento!X981 -> 
A18: =IF(H18>0,"F","") ->  | B18: 2. | C18: =Orçamento!$P982 -> PASSARELA PADRÃO SÉC. XXI 2015 - MOD 01 | E18: =IF(C18<>"","UN","") -> UN | F18: =IF(C18<>"",1,"") -> 1 | G18: =IFERROR(Orçamento!S982,"-") -> 0 | H18: =IFERROR(Orçamento!V982,"") -> 0 | I18: =Orçamento!X982 -> 
A19: =IF(H19>0,"F","") ->  | B19: 3. | C19: =Orçamento!$P983 -> BLOCO 02 SALAS DE AULA PADRÃO SEDUC - 2017 - LAJE | E19: UN | F19: 1 | G19: =IFERROR(Orçamento!S983,"-") -> 0 | H19: =IFERROR(Orçamento!V983,"") -> 0 | I19: =Orçamento!X983 -> 
B20: 4. | C20: =Orçamento!$P984 -> QUADRA EM ARCO PADRÃO SEDUC - MOD 03 | E20: UN | F20: 1 | G20: =IFERROR(Orçamento!S984,"-") -> 0 | H20: =IFERROR(Orçamento!V984,"") -> 0 | I20: =Orçamento!X984 -> 
B21: 5. | C21: =Orçamento!$P985 ->  | G21: =IFERROR(Orçamento!S985,"-") -> 0 | H21: =IFERROR(Orçamento!V985,"") -> 0 | I21: =Orçamento!X985 -> 
B22: 6. | C22: =Orçamento!$P986 ->  | G22: =IFERROR(Orçamento!S986,"-") -> 0 | H22: =IFERROR(Orçamento!V986,"") -> 0 | I22: =Orçamento!X986 -> 
B23: 7. | C23: =Orçamento!$P987 ->  | G23: =IFERROR(Orçamento!S987,"-") -> 0 | H23: =IFERROR(Orçamento!V987,"") -> 0 | I23: =Orçamento!X987 -> 
B24: 8. | C24: =Orçamento!$P988 ->  | G24: =IFERROR(Orçamento!S988,"-") -> 0 | H24: =IFERROR(Orçamento!V988,"") -> 0 | I24: =Orçamento!X988 -> 
B25: 9. | C25: =Orçamento!$P989 ->  | G25: =IFERROR(Orçamento!S989,"-") -> 0 | H25: =IFERROR(Orçamento!V989,"") -> 0 | I25: =Orçamento!X989 -> 
B26: 10. | C26: =Orçamento!$P990 ->  | G26: =IFERROR(Orçamento!S990,"-") -> 0 | H26: =IFERROR(Orçamento!V990,"") -> 0 | I26: =Orçamento!X990 -> 
B27: 11. | C27: =Orçamento!$P991 ->  | G27: =IFERROR(Orçamento!S991,"-") -> 0 | H27: =IFERROR(Orçamento!V991,"") -> 0 | I27: =Orçamento!X991 -> 
B28: 12. | C28: =Orçamento!$P992 ->  | G28: =IFERROR(Orçamento!S992,"-") -> 0 | H28: =IFERROR(Orçamento!V992,"") -> 0 | I28: =Orçamento!X992 -> 
B29: 13. | C29: =Orçamento!$P993 ->  | G29: =IFERROR(Orçamento!S993,"-") -> 0 | H29: =IFERROR(Orçamento!V993,"") -> 0 | I29: =Orçamento!X993 -> 
B30: 14. | C30: =Orçamento!$P994 ->  | G30: =IFERROR(Orçamento!S994,"-") -> 0 | H30: =IFERROR(Orçamento!V994,"") -> 0 | I30: =Orçamento!X994 -> 
B31: 15. | C31: =Orçamento!$P995 ->  | G31: =IFERROR(Orçamento!S995,"-") -> 0 | H31: =IFERROR(Orçamento!V995,"") -> 0 | I31: =Orçamento!X995 -> 
B32: 16. | C32: =Orçamento!$P996 ->  | G32: =IFERROR(Orçamento!S996,"-") -> 0 | H32: =IFERROR(Orçamento!V996,"") -> 0 | I32: =Orçamento!X996 -> 
B33: 17. | C33: =Orçamento!$P997 ->  | G33: =IFERROR(Orçamento!S997,"-") -> 0 | H33: =IFERROR(Orçamento!V997,"") -> 0 | I33: =Orçamento!X997 -> 
B34: 18. | C34: =Orçamento!$P998 ->  | G34: =IFERROR(Orçamento!S998,"-") -> 0 | H34: =IFERROR(Orçamento!V998,"") -> 0 | I34: =Orçamento!X998 -> 
B35: 19. | C35: =Orçamento!$P999 ->  | G35: =IFERROR(Orçamento!S999,"-") -> 0 | H35: =IFERROR(Orçamento!V999,"") -> 0 | I35: =Orçamento!X999 -> 
B36: 20. | C36: =Orçamento!$P1000 ->  | G36: =IFERROR(Orçamento!S1000,"-") -> 0 | H36: =IFERROR(Orçamento!V1000,"") -> 0 | I36: =Orçamento!X1000 -> 
A37: F | B37: TOTAL GERAL DO ORÇAMENTO (R$) | G37: =SUM(G17:G36) -> 0 | H37: =SUM(H17:H36) -> 0 | I37: =SUM(I17:I36) -> 
A38: F
A39: F

Sheet Somatório
B3: UNIDADE ESCOLAR | E3: CÓDIGO INEP
B4: =Orçamento!$O$4 -> CENTRO DE ENSINO EM PERÍODO INTEGRAL SYLVIO DE MELLO | E4: =Orçamento!V4 -> 52069206
B6: OBRA | E6: CIDADE
B7: =Orçamento!$O$7 -> REFORMA | E7: =Orçamento!$V$7 -> MORRINHOS
B9: ENDEREÇO | E9: CRE
B10: =Orçamento!$R$10 -> RUA PIAUI 386, CENTRO, CEP:75650-000 | E10: =Orçamento!$O$10 -> MORRINHOS
B12: REFERÊNCIA | D12: DATA | E12: ÁREA TOTAL CONSTRUÍDA (M²)
B13: =CONCATENATE("AGETOP E SINAPI - ",Orçamento!$T$10) -> AGETOP E SINAPI - DESONERADA | D13: =Orçamento!$S$7 -> 2020-07-07 | E13: =Orçamento!$V$13 -> 3042.44
A14: FILTRO
B15: SOMATÓRIO DE SERVIÇOS
A16: ↓ | B16: ITEM | C16: DESCRIÇÃO DOS SERVIÇOS | D16: PREÇO SEM BDI (R$) | E16: PREÇO COM BDI (R$) | F16: PARTIC. ( % )
A17: =IF(D17>0,"F","") ->  | B17: a. | C17: =Orçamento!P947 -> SERVIÇOS PRELIMINARES | D17: =Orçamento!S947 -> 0 | E17: =Orçamento!V947 -> 0 | F17: =Orçamento!X947 -> 0
A18: =IF(D18>0,"F","") ->  | B18: b. | C18: =Orçamento!P948 -> TRANSPORTES | D18: =Orçamento!S948 -> 0 | E18: =Orçamento!V948 -> 0 | F18: =Orçamento!X948 -> 0
B19: c. | C19: =Orçamento!P949 -> SERVIÇO EM TERRA | D19: =Orçamento!S949 -> 0 | E19: =Orçamento!V949 -> 0 | F19: =Orçamento!X949 -> 0
B20: d. | C20: =Orçamento!P950 -> FUNDAÇÕES E SONDAGENS | D20: =Orçamento!S950 -> 0 | E20: =Orçamento!V950 -> 0 | F20: =Orçamento!X950 -> 0
B21: e. | C21: =Orçamento!P951 -> ESTRUTURA | D21: =Orçamento!S951 -> 0 | E21: =Orçamento!V951 -> 0 | F21: =Orçamento!X951 -> 0
B22: f. | C22: =Orçamento!P952 -> INSTALAÇÕES ELÉTRICAS | D22: =Orçamento!S952 -> 0 | E22: =Orçamento!V952 -> 0 | F22: =Orçamento!X952 -> 0
B23: g. | C23: =Orçamento!P953 -> INSTALAÇÕES HIDROSSANITÁRIAS | D23: =Orçamento!S953 -> 0 | E23: =Orçamento!V953 -> 0 | F23: =Orçamento!X953 -> 0
B24: h. | C24: =Orçamento!P954 -> INSTALAÇÕES ESPECIAIS | D24: =Orçamento!S954 -> 0 | E24: =Orçamento!V954 -> 0 | F24: =Orçamento!X954 -> 0
B25: i. | C25: =Orçamento!P955 -> ALVENARIAS E DIVISÓRIAS | D25: =Orçamento!S955 -> 0 | E25: =Orçamento!V955 -> 0 | F25: =Orçamento!X955 -> 0
B26: j. | C26: =Orçamento!P956 -> ALVENARIA AUTO-PORTANTE | D26: =Orçamento!S956 -> 0 | E26: =Orçamento!V956 -> 0 | F26: =Orçamento!X956 -> 0
B27: k. | C27: =Orçamento!P957 -> IMPERMEABILIZAÇÃO | D27: =Orçamento!S957 -> 0 | E27: =Orçamento!V957 -> 0 | F27: =Orçamento!X957 -> 0
B28: l. | C28: =Orçamento!P958 -> ISOLAMENTO TÉRMICO E ACÚSTICO | D28: =Orçamento!S958 -> 0 | E28: =Orçamento!V958 -> 0 | F28: =Orçamento!X958 -> 0
B29: m. | C29: =Orçamento!P959 -> ESTRUTURA DE MADEIRA | D29: =Orçamento!S959 -> 0 | E29: =Orçamento!V959 -> 0 | F29: =Orçamento!X959 -> 0
B30: n. | C30: =Orçamento!P960 -> ESTRUTURAS METÁLICAS | D30: =Orçamento!S960 -> 0 | E30: =Orçamento!V960 -> 0 | F30: =Orçamento!X960 -> 0
B31: o. | C31: =Orçamento!P961 -> COBERTURAS | D31: =Orçamento!S961 -> 0 | E31: =Orçamento!V961 -> 0 | F31: =Orçamento!X961 -> 0
B32: p. | C32: =Orçamento!P962 -> ESQUADRIAS DE MADEIRA | D32: =Orçamento!S962 -> 0 | E32: =Orçamento!V962 -> 0 | F32: =Orçamento!X962 -> 0
B33: q. | C33: =Orçamento!P963 -> ESQUADRIAS METÁLICAS | D33: =Orçamento!S963 -> 0 | E33: =Orçamento!V963 -> 0 | F33: =Orçamento!X963 -> 0
B34: r. | C34: =Orçamento!P964 -> VIDROS | D34: =Orçamento!S964 -> 0 | E34: =Orçamento!V964 -> 0 | F34: =Orçamento!X964 -> 0
B35: s. | C35: =Orçamento!P965 -> REVESTIMENTO DE PAREDE | D35: =Orçamento!S965 -> 0 | E35: =Orçamento!V965 -> 0 | F35: =Orçamento!X965 -> 0
B36: t. | C36: =Orçamento!P966 -> FORROS | D36: =Orçamento!S966 -> 0 | E36: =Orçamento!V966 -> 0 | F36: =Orçamento!X966 -> 0
B37: u. | C37: =Orçamento!P967 -> REVESTIMENTO DE PISO | D37: =Orçamento!S967 -> 0 | E37: =Orçamento!V967 -> 0 | F37: =Orçamento!X967 -> 0
B38: v. | C38: =Orçamento!P968 -> FERRAGENS | D38: =Orçamento!S968 -> 0 | E38: =Orçamento!V968 -> 0 | F38: =Orçamento!X968 -> 0
B39: w. | C39: =Orçamento!P969 -> MARCENARIA | D39: =Orçamento!S969 -> 0 | E39: =Orçamento!V969 -> 0 | F39: =Orçamento!X969 -> 0
B40: x. | C40: =Orçamento!P970 -> ADMINISTRAÇÃO | D40: =Orçamento!S970 -> 0 | E40: =Orçamento!V970 -> 0 | F40: =Orçamento!X970 -> 0
B41: y. | C41: =Orçamento!P971 -> PINTURA | D41: =Orçamento!S971 -> 0 | E41: =Orçamento!V971 -> 0 | F41: =Orçamento!X971 -> 0
B42: z. | C42: =Orçamento!P972 -> DIVERSOS | D42: =Orçamento!S972 -> 0 | E42: =Orçamento!V972 -> 0 | F42: =Orçamento!X972 -> 0
A43: F | B43: TOTAL GERAL DO ORÇAMENTO | D43: =SUM(D17:D42) -> 0 | E43: =SUM(E17:E42) -> 0 | F43: =SUM(F17:F42) -> 0
B45: (*) Para itens da AGETOP, os vidros não estão inclusos nas esquadrias e já foram considerados os custos de contramarco para as esquadrias de alumínio;

Sheet Cronog_120_Dias
B3: UNIDADE ESCOLAR | I3: PRAZO
B4: =Orçamento!O4 -> CENTRO DE ENSINO EM PERÍODO INTEGRAL SYLVIO DE MELLO | I4: 120 DIAS CORRIDOS
B6: OBRA | I6: DATA
B7: =Orçamento!O7 -> REFORMA | I7: =Orçamento!S7 -> 2020-07-07
B9: LOCAL | I9: ÁREA TOTAL CONSTRUÍDA (M²)
A10: FILTRO | B10: =Orçamento!V7 -> MORRINHOS | I10: =Orçamento!V13 -> 3042.44
B12: CRONOGRAMA - FÍSICO FINANCEIRO
A13: ↓ | B13: CUSTO TOTAL: | C13: =D93 -> 0 | D13: VALOR | E13: Dias: | F13: 30 | J13: 60 | N13: 90 | R13: 120 | V13: TOTAL
B14: DESCRIÇÃO DOS SERVIÇOS | E14: % | F14: 1ª PARCELA | J14: 2ª PARCELA | N14: 3ª PARCELA | R14: 4ª PARCELA
A15: =IF(D15>0,"F","") ->  | B15: SERVIÇOS PRELIMINARES | D15: =Orçamento!V947 -> 0 | E15: =Orçamento!X947 -> 0 | F15: =ROUND(F17*$D$15,2) -> 0 | J15: =ROUND(J17*$D$15,2) -> 0 | N15: =ROUND(N17*$D$15,2) -> 0 | R15: =ROUND(R17*$D$15,2) -> 0 | V15: =SUM(F15:U15) -> 0 | X15: =IF(D15=V15,"OK","ERRO") -> OK
A16: =IF(A15="F",A15,"") -> 
A17: =IF(A16="F",A16,"") ->  | F17: 1 | J17: 0 | N17: 0 | R17: =100%-(SUM(F17:Q17)) -> 0 | V17: =IFERROR(E15/100,"") -> 0 | X17: =IF(E15=V17*100,"OK","ERRO") -> OK
A18: =IF(D18>0,"F","") ->  | B18: TRANSPORTES | D18: =Orçamento!V948 -> 0 | E18: =Orçamento!X948 -> 0 | F18: =ROUND(F20*$D$18,2) -> 0 | J18: =ROUND(J20*$D$18,2) -> 0 | N18: =ROUND(N20*$D$18,2) -> 0 | R18: =ROUND(R20*$D$18,2) -> 0 | V18: =SUM(F18:U18) -> 0 | X18: =IF(D18=V18,"OK","ERRO") -> OK
A19: =IF(A18="F",A18,"") -> 
A20: =IF(A19="F",A19,"") ->  | F20: 0.2502 | J20: =F20 -> 0.2502 | N20: =J20 -> 0.2502 | R20: =100%-(SUM(F20:Q20)) -> 0.2494 | V20: =IFERROR(E18/100,"") -> 0 | X20: =IF(E18=V20*100,"OK","ERRO") -> OK
A21: =IF(D21>0,"F","") ->  | B21: SERVIÇO EM TERRA | D21: =Orçamento!V949 -> 0 | E21: =Orçamento!X949 -> 0 | F21: =ROUND(F23*$D$21,2) -> 0 | J21: =ROUND(J23*$D$21,2) -> 0 | N21: =ROUND(N23*$D$21,2) -> 0 | R21: =ROUND(R23*$D$21,2) -> 0 | V21: =SUM(F21:U21) -> 0 | X21: =IF(D21=V21,"OK","ERRO") -> OK
A22: =IF(A21="F",A21,"") -> 
A23: =IF(A22="F",A22,"") ->  | F23: 1 | J23: 0 | N23: 0 | R23: =100%-(SUM(F23:Q23)) -> 0 | V23: =IFERROR(E21/100,"") -> 0 | X23: =IF(E21=V23*100,"OK","ERRO") -> OK
A24: =IF(D24>0,"F","") ->  | B24: FUNDAÇÕES E SONDAGENS | D24: =Orçamento!V950 -> 0 | E24: =Orçamento!X950 -> 0 | F24: =ROUND(F26*$D$24,2) -> 0 | J24: =ROUND(J26*$D$24,2) -> 0 | N24: =ROUND(N26*$D$24,2) -> 0 | R24: =ROUND(R26*$D$24,2) -> 0 | V24: =SUM(F24:U24) -> 0 | X24: =IF(D24=V24,"OK","ERRO") -> OK
A25: =IF(A24="F",A24,"") -> 
A26: =IF(A25="F",A25,"") ->  | F26: 1 | J26: 0 | R26: =100%-(SUM(F26:Q26)) -> 0 | V26: =IFERROR(E24/100,"") -> 0 | X26: =IF(E24=V26*100,"OK","ERRO") -> OK
A27: =IF(D27>0,"F","") ->  | B27: ESTRUTURA | D27: =Orçamento!V951 -> 0 | E27: =Orçamento!X951 -> 0 | F27: =ROUND(F29*$D$27,2) -> 0 | J27: =ROUND(J29*$D$27,2) -> 0 | N27: =ROUND(N29*$D$27,2) -> 0 | R27: =ROUND(R29*$D$27,2) -> 0 | V27: =SUM(F27:U27) -> 0 | X27: =IF(D27=V27,"OK","ERRO") -> OK
A28: =IF(A27="F",A27,"") -> 
A29: =IF(A28="F",A28,"") ->  | F29: 0.4 | J29: 0.6 | N29: 0 | R29: =100%-(SUM(F29:Q29)) -> 0 | V29: =IFERROR(E27/100,"") -> 0 | X29: =IF(E27=V29*100,"OK","ERRO") -> OK
A30: =IF(D30>0,"F","") ->  | B30: INST.ELET/TELEFÔNICA/CABEAMENTO ESTRUTURADO | D30: =Orçamento!V952 -> 0 | E30: =Orçamento!X952 -> 0 | F30: =ROUND(F32*$D$30,2) -> 0 | J30: =ROUND(J32*$D$30,2) -> 0 | N30: =ROUND(N32*$D$30,2) -> 0 | R30: =ROUND(R32*$D$30,2) -> 0 | V30: =SUM(F30:U30) -> 0 | X30: =IF(D30=V30,"OK","ERRO") -> OK
A31: =IF(A30="F",A30,"") -> 
A32: =IF(A31="F",A31,"") ->  | J32: 0.75 | N32: 0.25 | R32: =100%-(SUM(F32:Q32)) -> 0 | V32: =IFERROR(E30/100,"") -> 0 | X32: =IF(E30=V32*100,"OK","ERRO") -> OK
A33: =IF(D33>0,"F","") ->  | B33: INSTALAÇÕES HIDROSSANITÁRIAS | D33: =Orçamento!V953 -> 0 | E33: =Orçamento!X953 -> 0 | F33: =ROUND(F35*$D$33,2) -> 0 | J33: =ROUND(J35*$D$33,2) -> 0 | N33: =ROUND(N35*$D$33,2) -> 0 | R33: =ROUND(R35*$D$33,2) -> 0 | V33: =SUM(F33:U33) -> 0 | X33: =IF(D33=V33,"OK","ERRO") -> OK
A34: =IF(A33="F",A33,"") -> 
A35: =IF(A34="F",A34,"") ->  | J35: 0.75 | N35: 0.25 | R35: =100%-(SUM(F35:Q35)) -> 0 | V35: =IFERROR(E33/100,"") -> 0 | X35: =IF(E33=V35*100,"OK","ERRO") -> OK
A36: =IF(D36>0,"F","") ->  | B36: INSTALAÇÕES ESPECIAIS | D36: =Orçamento!V954 -> 0 | E36: =Orçamento!X954 -> 0 | F36: =ROUND(F38*$D$36,2) -> 0 | J36: =ROUND(J38*$D$36,2) -> 0 | N36: =ROUND(N38*$D$36,2) -> 0 | R36: =ROUND(R38*$D$36,2) -> 0 | V36: =SUM(F36:U36) -> 0 | X36: =IF(D36=V36,"OK","ERRO") -> OK
A37: =IF(A36="F",A36,"") -> 
A38: =IF(A37="F",A37,"") ->  | J38: 0.63 | N38: 0.37 | R38: =100%-(SUM(F38:Q38)) -> 0 | V38: =IFERROR(E36/100,"") -> 0 | X38: =IF(E36=V38*100,"OK","ERRO") -> OK
A39: =IF(D39>0,"F","") ->  | B39: ALVENARIA E DIVISÓRIAS | D39: =Orçamento!V955 -> 0 | E39: =Orçamento!X955 -> 0 | F39: =ROUND(F41*$D$39,2) -> 0 | J39: =ROUND(J41*$D$39,2) -> 0 | N39: =ROUND(N41*$D$39,2) -> 0 | R39: =ROUND(R41*$D$39,2) -> 0 | V39: =SUM(F39:U39) -> 0 | X39: =IF(D39=V39,"OK","ERRO") -> OK
A40: =IF(A39="F",A39,"") -> 
A41: =IF(A40="F",A40,"") ->  | J41: 0.63 | N41: 0.37 | R41: =100%-(SUM(F41:Q41)) -> 0 | V41: =IFERROR(E39/100,"") -> 0 | X41: =IF(E39=V41*100,"OK","ERRO") -> OK
A42: =IF(D42>0,"F","") ->  | B42: ALVENARIA AUTO-PORTANTE | D42: =Orçamento!V956 -> 0 | E42: =Orçamento!X956 -> 0 | F42: =ROUND(F44*$D$42,2) -> 0 | J42: =ROUND(J44*$D$42,2) -> 0 | N42: =ROUND(N44*$D$42,2) -> 0 | R42: =ROUND(R44*$D$42,2) -> 0 | V42: =SUM(F42:U42) -> 0 | X42: =IF(D42=V42,"OK","ERRO") -> OK
A43: =IF(A42="F",A42,"") -> 
A44: =IF(A43="F",A43,"") ->  | J44: 0.63 | N44: 0.37 | R44: =100%-(SUM(F44:Q44)) -> 0 | V44: =IFERROR(E42/100,"") -> 0 | X44: =IF(E42=V44*100,"OK","ERRO") -> OK
A45: =IF(D45>0,"F","") ->  | B45: IMPERMEABILIZAÇÃO | D45: =Orçamento!V957 -> 0 | E45: =Orçamento!X957 -> 0 | F45: =ROUND(F47*$D$45,2) -> 0 | J45: =ROUND(J47*$D$45,2) -> 0 | N45: =ROUND(N47*$D$45,2) -> 0 | R45: =ROUND(R47*$D$45,2) -> 0 | V45: =SUM(F45:U45) -> 0 | X45: =IF(D45=V45,"OK","ERRO") -> OK
A46: =IF(A45="F",A45,"") -> 
A47: =IF(A46="F",A46,"") ->  | F47: 0.35 | J47: 0.35 | N47: 0.3 | R47: =100%-(SUM(F47:Q47)) -> 0 | V47: =IFERROR(E45/100,"") -> 0 | X47: =IF(E45=V47*100,"OK","ERRO") -> OK
A48: =IF(D48>0,"F","") ->  | B48: ISOLAMENTO TÉRMICO E ACÚSTICO | D48: =Orçamento!V958 -> 0 | E48: =Orçamento!X958 -> 0 | F48: =ROUND(F50*$D$48,2) -> 0 | J48: =ROUND(J50*$D$48,2) -> 0 | N48: =ROUND(N50*$D$48,2) -> 0 | R48: =ROUND(R50*$D$48,2) -> 0 | V48: =SUM(F48:U48) -> 0 | X48: =IF(D48=V48,"OK","ERRO") -> OK
A49: =IF(A48="F",A48,"") -> 
A50: =IF(A49="F",A49,"") ->  | J50: 0.55 | N50: 0.4 | R50: =100%-(SUM(F50:Q50)) -> 0.05 | V50: =IFERROR(E48/100,"") -> 0 | X50: =IF(E48=V50*100,"OK","ERRO") -> OK
A51: =IF(D51>0,"F","") ->  | B51: ESTRUTURA DE MADEIRA | D51: =Orçamento!V959 -> 0 | E51: =Orçamento!X959 -> 0 | F51: =ROUND(F53*$D$51,2) -> 0 | J51: =ROUND(J53*$D$51,2) -> 0 | N51: =ROUND(N53*$D$51,2) -> 0 | R51: =ROUND(R53*$D$51,2) -> 0 | V51: =SUM(F51:U51) -> 0 | X51: =IF(D51=V51,"OK","ERRO") -> OK
A52: =IF(A51="F",A51,"") -> 
A53: =IF(A52="F",A52,"") ->  | J53: 0.35 | N53: 0.65 | R53: =100%-(SUM(F53:Q53)) -> 0 | V53: =IFERROR(E51/100,"") -> 0 | X53: =IF(E51=V53*100,"OK","ERRO") -> OK
A54: =IF(D54>0,"F","") ->  | B54: ESTRUTURA METÁLICA | D54: =Orçamento!V960 -> 0 | E54: =Orçamento!X960 -> 0 | F54: =ROUND(F56*$D$54,2) -> 0 | J54: =ROUND(J56*$D$54,2) -> 0 | N54: =ROUND(N56*$D$54,2) -> 0 | R54: =ROUND(R56*$D$54,2) -> 0 | V54: =SUM(F54:U54) -> 0 | X54: =IF(D54=V54,"OK","ERRO") -> OK
A55: =IF(A54="F",A54,"") -> 
A56: =IF(A55="F",A55,"") ->  | J56: 0.35 | N56: 0.65 | R56: =100%-(SUM(F56:Q56)) -> 0 | V56: =IFERROR(E54/100,"") -> 0 | X56: =IF(E54=V56*100,"OK","ERRO") -> OK
A57: =IF(D57>0,"F","") ->  | B57: COBERTURAS | D57: =Orçamento!V961 -> 0 | E57: =Orçamento!X961 -> 0 | F57: =ROUND(F59*$D$57,2) -> 0 | J57: =ROUND(J59*$D$57,2) -> 0 | N57: =ROUND(N59*$D$57,2) -> 0 | R57: =ROUND(R59*$D$57,2) -> 0 | V57: =SUM(F57:U57) -> 0 | X57: =IF(D57=V57,"OK","ERRO") -> OK
A58: =IF(A57="F",A57,"") -> 
A59: =IF(A58="F",A58,"") ->  | N59: 0.55 | R59: =100%-(SUM(F59:Q59)) -> 0.45 | V59: =IFERROR(E57/100,"") -> 0 | X59: =IF(E57=V59*100,"OK","ERRO") -> OK
A60: =IF(D60>0,"F","") ->  | B60: ESQUADRIAS DE MADEIRA | D60: =Orçamento!V962 -> 0 | E60: =Orçamento!X962 -> 0 | F60: =ROUND(F62*$D$60,2) -> 0 | J60: =ROUND(J62*$D$60,2) -> 0 | N60: =ROUND(N62*$D$60,2) -> 0 | R60: =ROUND(R62*$D$60,2) -> 0 | V60: =SUM(F60:U60) -> 0 | X60: =IF(D60=V60,"OK","ERRO") -> OK
A61: =IF(A60="F",A60,"") -> 
A62: =IF(A61="F",A61,"") ->  | N62: 0.55 | R62: =100%-(SUM(F62:Q62)) -> 0.45 | V62: =IFERROR(E60/100,"") -> 0 | X62: =IF(E60=V62*100,"OK","ERRO") -> OK
A63: =IF(D63>0,"F","") ->  | B63: ESQUADRIAS METÁLICAS | D63: =Orçamento!V963 -> 0 | E63: =Orçamento!X963 -> 0 | F63: =ROUND(F65*$D$63,2) -> 0 | J63: =ROUND(J65*$D$63,2) -> 0 | N63: =ROUND(N65*$D$63,2) -> 0 | R63: =ROUND(R65*$D$63,2) -> 0 | V63: =SUM(F63:U63) -> 0 | X63: =IF(D63=V63,"OK","ERRO") -> OK
A64: =IF(A63="F",A63,"") -> 
A65: =IF(A64="F",A64,"") ->  | N65: 0.55 | R65: =100%-(SUM(F65:Q65)) -> 0.45 | V65: =IFERROR(E63/100,"") -> 0 | X65: =IF(E63=V65*100,"OK","ERRO") -> OK
A66: =IF(D66>0,"F","") ->  | B66: VIDROS | D66: =Orçamento!V964 -> 0 | E66: =Orçamento!X964 -> 0 | F66: =ROUND(F68*$D$66,2) -> 0 | J66: =ROUND(J68*$D$66,2) -> 0 | N66: =ROUND(N68*$D$66,2) -> 0 | R66: =ROUND(R68*$D$66,2) -> 0 | V66: =SUM(F66:U66) -> 0 | X66: =IF(D66=V66,"OK","ERRO") -> OK
A67: =IF(A66="F",A66,"") -> 
A68: =IF(A67="F",A67,"") ->  | N68: 0 | R68: 1 | V68: =IFERROR(E66/100,"") -> 0 | X68: =IF(E66=V68*100,"OK","ERRO") -> OK
A69: =IF(D69>0,"F","") ->  | B69: REVESTIMENTO DE PAREDE | D69: =Orçamento!V965 -> 0 | E69: =Orçamento!X965 -> 0 | F69: =ROUND(F71*$D$69,2) -> 0 | J69: =ROUND(J71*$D$69,2) -> 0 | N69: =ROUND(N71*$D$69,2) -> 0 | R69: =ROUND(R71*$D$69,2) -> 0 | V69: =SUM(F69:U69) -> 0 | X69: =IF(D69=V69,"OK","ERRO") -> OK
A70: =IF(A69="F",A69,"") -> 
A71: =IF(A70="F",A70,"") ->  | N71: 1 | R71: =100%-(SUM(F71:Q71)) -> 0 | V71: =IFERROR(E69/100,"") -> 0 | X71: =IF(E69=V71*100,"OK","ERRO") -> OK
A72: =IF(D72>0,"F","") ->  | B72: FORROS | D72: =Orçamento!V966 -> 0 | E72: =Orçamento!X966 -> 0 | F72: =ROUND(F74*$D$72,2) -> 0 | J72: =ROUND(J74*$D$72,2) -> 0 | N72: =ROUND(N74*$D$72,2) -> 0 | R72: =ROUND(R74*$D$72,2) -> 0 | V72: =SUM(F72:U72) -> 0 | X72: =IF(D72=V72,"OK","ERRO") -> OK
A73: =IF(A72="F",A72,"") -> 
A74: =IF(A73="F",A73,"") ->  | N74: 0.4 | R74: =100%-(SUM(F74:Q74)) -> 0.6 | V74: =IFERROR(E72/100,"") -> 0 | X74: =IF(E72=V74*100,"OK","ERRO") -> OK
A75: =IF(D75>0,"F","") ->  | B75: REVESTIMENTO DE PISO | D75: =Orçamento!V967 -> 0 | E75: =Orçamento!X967 -> 0 | F75: =ROUND(F77*$D$75,2) -> 0 | J75: =ROUND(J77*$D$75,2) -> 0 | N75: =ROUND(N77*$D$75,2) -> 0 | R75: =ROUND(R77*$D$75,2) -> 0 | V75: =SUM(F75:U75) -> 0 | X75: =IF(D75=V75,"OK","ERRO") -> OK
A76: =IF(A75="F",A75,"") -> 
A77: =IF(A76="F",A76,"") ->  | N77: 0.4 | R77: =100%-(SUM(F77:Q77)) -> 0.6 | V77: =IFERROR(E75/100,"") -> 0 | X77: =IF(E75=V77*100,"OK","ERRO") -> OK
A78: =IF(D78>0,"F","") ->  | B78: FERRAGENS | D78: =Orçamento!V968 -> 0 | E78: =Orçamento!X968 -> 0 | F78: =ROUND(F80*$D$78,2) -> 0 | J78: =ROUND(J80*$D$78,2) -> 0 | N78: =ROUND(N80*$D$78,2) -> 0 | R78: =ROUND(R80*$D$78,2) -> 0 | V78: =SUM(F78:U78) -> 0 | X78: =IF(D78=V78,"OK","ERRO") -> OK
A79: =IF(A78="F",A78,"") -> 
A80: =IF(A79="F",A79,"") ->  | R80: =100%-(SUM(F80:Q80)) -> 1 | V80: =IFERROR(E78/100,"") -> 0 | X80: =IF(E78=V80*100,"OK","ERRO") -> OK
A81: =IF(D81>0,"F","") ->  | B81: MARCENARIA | D81: =Orçamento!V969 -> 0 | E81: =Orçamento!X969 -> 0 | F81: =ROUND(F83*$D$81,2) -> 0 | J81: =ROUND(J83*$D$81,2) -> 0 | N81: =ROUND(N83*$D$81,2) -> 0 | R81: =ROUND(R83*$D$81,2) -> 0 | V81: =SUM(F81:U81) -> 0 | X81: =IF(D81=V81,"OK","ERRO") -> OK
A82: =IF(A81="F",A81,"") -> 
A83: =IF(A82="F",A82,"") ->  | R83: =100%-(SUM(F83:Q83)) -> 1 | V83: =IFERROR(E81/100,"") -> 0 | X83: =IF(E81=V83*100,"OK","ERRO") -> OK
A84: =IF(D84>0,"F","") ->  | B84: ADMINISTRAÇÃO - MENSALISTAS | D84: =Orçamento!V970 -> 0 | E84: =Orçamento!X970 -> 0 | F84: =ROUND(F86*$D$84,2) -> 0 | J84: =ROUND(J86*$D$84,2) -> 0 | N84: =ROUND(N86*$D$84,2) -> 0 | R84: =ROUND(R86*$D$84,2) -> 0 | V84: =SUM(F84:U84) -> 0 | X84: =IF(D84=V84,"OK","ERRO") -> OK
A85: =IF(A84="F",A84,"") -> 
A86: =IF(A85="F",A85,"") ->  | F86: 0.2503 | J86: =F86 -> 0.2503 | N86: =J86 -> 0.2503 | R86: =100%-(SUM(F86:Q86)) -> 0.2491 | V86: =IFERROR(E84/100,"") -> 0 | X86: =IF(E84=V86*100,"OK","ERRO") -> OK
A87: =IF(D87>0,"F","") ->  | B87: PINTURA | D87: =Orçamento!V971 -> 0 | E87: =Orçamento!X971 -> 0 | F87: =ROUND(F89*$D$87,2) -> 0 | J87: =ROUND(J89*$D$87,2) -> 0 | N87: =ROUND(N89*$D$87,2) -> 0 | R87: =ROUND(R89*$D$87,2) -> 0 | V87: =SUM(F87:U87) -> 0 | X87: =IF(D87=V87,"OK","ERRO") -> OK
A88: =IF(A87="F",A87,"") -> 
A89: =IF(A88="F",A88,"") ->  | N89: 0.36 | R89: =100%-(SUM(F89:Q89)) -> 0.64 | V89: =IFERROR(E87/100,"") -> 0 | X89: =IF(E87=V89*100,"OK","ERRO") -> OK
A90: =IF(D90>0,"F","") ->  | B90: DIVERSOS | D90: =Orçamento!V972 -> 0 | E90: =Orçamento!X972 -> 0 | F90: =ROUND(F92*$D$90,2) -> 0 | J90: =ROUND(J92*$D$90,2) -> 0 | N90: =ROUND(N92*$D$90,2) -> 0 | R90: =ROUND(R92*$D$90,2) -> 0 | V90: =SUM(F90:U90) -> 0 | X90: =IF(D90=V90,"OK","ERRO") -> OK
A91: =IF(A90="F",A90,"") -> 
A92: =IF(A91="F",A91,"") ->  | F92: 0.251 | J92: 0.255 | N92: 0.255 | R92: =100%-(SUM(F92:Q92)) -> 0.239 | V92: =IFERROR(E90/100,"") -> 0 | X92: =IF(E90=V92*100,"OK","ERRO") -> OK
A93: F | B93: CUSTO DO ORÇAMENTO | D93: =SUM(D15:D92) -> 0 | E93: =SUM(E15:E92) -> 0 | F93: =F15+F18+F21+F24+F27+F30+F33+F36+F39+F42+F45+F48+F51+F54+F57+F60+F63+F66+F69+F72+F75+F78+F81+F84+F87+F90 -> 0 | J93: =J15+J18+J21+J24+J27+J30+J33+J36+J39+J42+J45+J48+J51+J54+J57+J60+J63+J66+J69+J72+J75+J78+J81+J84+J87+J90 -> 0 | N93: =N15+N18+N21+N24+N27+N30+N33+N36+N39+N42+N45+N48+N51+N54+N57+N60+N63+N66+N69+N72+N75+N78+N81+N84+N87+N90 -> 0 | R93: =R15+R18+R21+R24+R27+R30+R33+R36+R39+R42+R45+R48+R51+R54+R57+R60+R63+R66+R69+R72+R75+R78+R81+R84+R87+R90 -> 0 | V93: =V15+V18+V21+V24+V27+V30+V33+V36+V39+V42+V45+V48+V51+V54+V57+V60+V63+V66+V69+V72+V75+V78+V81+V84+V87+V90 -> 0
A94: F | B94: PERCENTUAIS: | F94: =IFERROR(F93/$D$93,"") ->  | J94: =IFERROR(J93/$D$93,"") ->  | N94: =IFERROR(N93/$D$93,"") ->  | R94: =IFERROR(R93/$D$93,"") ->  | V94: =SUM(F94:U94) -> 0
A95: F | B95: TOTAIS ACUMULADOS: | F95: =F93 -> 0 | J95: =J93+F95 -> 0 | N95: =N93+J95 -> 0 | R95: =R93+N95 -> 0
A96: F | B96: PERCENTUAIS ACUMULADOS: | F96: =F94 ->  | J96: =J94+F96 ->  | N96: =N94+J96 ->  | R96: =R94+N96 -> 
A97: F
A98: F | B98: OBSERVAÇÕES:
A99: F | B99: Os pagamentos somente poderão ser efetuados mediante medição e atesto pelos técnicos da Secretaria da Educação.

Sheet Composição BDI
A3: UNIDADE ESCOLAR
A4: =Orçamento!$O$4 -> CENTRO DE ENSINO EM PERÍODO INTEGRAL SYLVIO DE MELLO
A6: OBRA
A7: =Orçamento!$O$7 -> REFORMA
A9: ENDEREÇO
A10: =Orçamento!$R$10 -> RUA PIAUI 386, CENTRO, CEP:75650-000
A12: CIDADE
A13: =Orçamento!$V$7 -> MORRINHOS
A15: CRE
A16: =Orçamento!$O$10 -> MORRINHOS
A18: DETALHAMENTO DA COMPOSIÇÃO DE BDI
A19: COMPOSIÇÃO BDI PARA OBRAS CIVIS | F19: BDI CONSTRUÇÃO E REFORMA
A20: DESCRIÇÃO | B20: COEF. | C20: TAXA % (a.m) | D20: % no preço de venda | F20: Situação | G20: 1º Quartil | H20: Médio | I20: 3º Quartil
A21: 1) COFINS | B21: 1 | C21: 0.03 | D21: =C21 -> 0.03 | F21: =IF(OR(C21<G21,C21>I21),"FORA DO INTERVALO","OK") -> OK | G21: 0.03 | H21: 0.03 | I21: 0.03
A22: 2) PIS | B22: 1 | C22: 0.0065 | D22: =C22 -> 0.0065 | F22: =IF(OR(C22<G22,C22>I22),"FORA DO INTERVALO","OK") -> OK | G22: 0.0065 | H22: 0.0065 | I22: 0.0065
A23: 3) ISSQN | B23: 1 | C23: 0.02894 | D23: =C23*B23 -> 0.02894 | F23: OK | G23: 0.02 | H23: 0.035 | I23: 0.05
A24: 4) CPRB | B24: 1 | C24: 0.045 | D24: =C24 -> 0.045 | F24: OK | G24: 0.045 | H24: 0.045 | I24: 0.045
A25: 5) Administração Central | B25: 1 | C25: 0.04 | D25: 0.04 | F25: OK | G25: 0.03 | H25: 0.04 | I25: 0.055
A26: 6) Despesas Financeiras | B26: 1 | C26: 0.0056 | D26: 0.0056 | F26: FORA DO INTERVALO | G26: 0.0059 | H26: 0.0123 | I26: 0.0139
A27: 7) Seguros + Garantias | B27: 1 | C27: 0.0012 | D27: 0.0012 | F27: FORA DO INTERVALO | G27: 0.008 | H27: 0.008 | I27: 0.01
A28: 8) Risco | B28: 1 | C28: 0.0097 | D28: 0.0097 | F28: OK | G28: 0.0097 | H28: 0.0127 | I28: 0.0127
A29: 9) Lucro | B29: 1 | C29: 0.0642 | D29: 0.0642 | F29: OK | G29: 0.0616 | H29: 0.074 | I29: 0.0896
A30: BDI - FINAL | D30: =(((1+D25+D27+D28)*(1+D26)*(1+D29))/(1-(D21+D22+D23+D24))-1) -> 0.264254957 | F30: =IF(OR(D30<G30,D30>I30),"FORA DO INTERVALO","OK") -> FORA DO INTERVALO | G30: 0.2034 | H30: 0.2212 | I30: 0.25
A32: Notas:
A33: (1) e (2) Alíquota definida por lei.
A34: (3) Alíquota e base de cálculo definidas pela legislação municipal.
A35: (4) Alíquota definida pelas leis 12.546/11, 12844/13 e 13.161/15 (CPRB – contribuição previdenciária sobre a receita bruta).
A36: (5) Valores definidos a partir dos limites no Acórdão nº 2.622/2013 - TCU – Plenário. Valores entre o 1º e 3º quartis.
A37: (6) Valor calculado pela expressão matemática do acórdão 2.369/2011 – TCU – Plenário e disponibilizado pela AGETOP em dezembro de 2018. (Foi utilizado para o cálculo a média da Taxa SELIC no período de 11/2017 a 10/2018)
A39: (7) Valores definidos pela AGETOP a partir dos limites no Acórdão nº 2.622/2013 - TCU – Plenário. Valores médios. Observação da AGETOP: (Seguros contra erros de execução, incêndio e explosão, danos da natureza (vendaval, destelhamento, alagamento, inundação, desmoronamento, geadas etc.), emprego de material defeituoso ou inadequado, roubo e/ou furto qualificado, quebra de equipamentos, desmoronamento de estrutura, nas modalidades de Obras Civis em Construção (OCC); Instalação e Montagem (IM); e Obras Civis em Construção e Instalação e Montagem (OCC/IM). Bem como coberturas adicionais para ampliação dessas coberturas básicas, como: cobertura de responsabilidade civil geral, cobertura de responsabilidade civil cruzada, cobertura de despesas extraordinárias, cobertura de tumultos, cobertura de desentulho do local, cobertura de riscos do fabricante, dentre outras, incluindo o seguro de vida em grupo regido pela convenção coletiva dos trabalhadores na indústria da construção civil). A partir de 24/02/2015 por intermédio da Portaria 449/2015 a Presidência da AGETOP, na pessoa do Senhor Jayme Eduardo Rincon, determinou a exclusão dos valores referentes aos Seguros de Risco de Engenharia e Responsabilidade Civil do Profissional na composição do cálculo do B.D.I..
A40: (8) Valores definidos a partir dos limites no Acórdão nº 2.622/2013 - TCU – Plenário. Valores entre 1º e 3° quartis.
A41: (9) Valores definidos a partir dos limites definidos no Acórdão nº 2.622/2013 - TCU – Plenário. Valores adotados e praticados no mercado ( “ ex ante ” ) ou aqueles entre os 1º e 3º quartis.
A43: (*) A fórmula para estipulação da taxa de BDI estimado adotado é a mesma que foi aplicada para a obtenção das tabelas contidas no Acórdão n. 2.622/2013 – TCUPlenário
A45: Obs.: Para obras com valores superiores a R$ 20.000.000,00 sugere-se recalcular o BDI, dimensionando as taxas de administração central e lucro para patamares inferiores ao estipulado acima.

Sheet Relatório CENTRAL
B3: UNIDADE ESCOLAR | D3: CIDADE
B4: =Orçamento!$O$4 -> CENTRO DE ENSINO EM PERÍODO INTEGRAL SYLVIO DE MELLO | D4: =Orçamento!$V$7 -> MORRINHOS
B6: OBRA | D6: CRE
B7: =Orçamento!$O$7 -> REFORMA | D7: =Orçamento!$O$10 -> MORRINHOS
B9: ENDEREÇO | D9: DATA
A10: FILTRO | B10: =Orçamento!$R$10 -> RUA PIAUI 386, CENTRO, CEP:75650-000 | D10: =Orçamento!$S$7 -> 2020-07-07
B12: RELATÓRIO CENTRAL
A13: ↓ | B13: CÓDIGO | C13: ETAPA | D13: PREÇO (R$) C/ BDI | E13: PARTIC ( % )
A14: =IF(D14>0,"F","") ->  | B14: =Orçamento!O947 -> a. | C14: =Orçamento!P947 -> SERVIÇOS PRELIMINARES | D14: =Orçamento!V947 -> 0 | E14: =Orçamento!X947 -> 0
A15: =IF(D15>0,"F","") ->  | B15: =Orçamento!O948 -> b. | C15: =Orçamento!P948 -> TRANSPORTES | D15: =Orçamento!V948 -> 0 | E15: =Orçamento!X948 -> 0
B16: =Orçamento!O949 -> c. | C16: =Orçamento!P949 -> SERVIÇO EM TERRA | D16: =Orçamento!V949 -> 0 | E16: =Orçamento!X949 -> 0
B17: =Orçamento!O950 -> d. | C17: =Orçamento!P950 -> FUNDAÇÕES E SONDAGENS | D17: =Orçamento!V950 -> 0 | E17: =Orçamento!X950 -> 0
B18: =Orçamento!O951 -> e. | C18: =Orçamento!P951 -> ESTRUTURA | D18: =Orçamento!V951 -> 0 | E18: =Orçamento!X951 -> 0
B19: =Orçamento!O952 -> f. | C19: =Orçamento!P952 -> INSTALAÇÕES ELÉTRICAS | D19: =Orçamento!V952 -> 0 | E19: =Orçamento!X952 -> 0
B20: =Orçamento!O953 -> g. | C20: =Orçamento!P953 -> INSTALAÇÕES HIDROSSANITÁRIAS | D20: =Orçamento!V953 -> 0 | E20: =Orçamento!X953 -> 0
B21: =Orçamento!O954 -> h | C21: =Orçamento!P954 -> INSTALAÇÕES ESPECIAIS | D21: =Orçamento!V954 -> 0 | E21: =Orçamento!X954 -> 0
B22: =Orçamento!O955 -> i. | C22: =Orçamento!P955 -> ALVENARIAS E DIVISÓRIAS | D22: =Orçamento!V955 -> 0 | E22: =Orçamento!X955 -> 0
B23: =Orçamento!O956 -> j. | C23: =Orçamento!P956 -> ALVENARIA AUTO-PORTANTE | D23: =Orçamento!V956 -> 0 | E23: =Orçamento!X956 -> 0
B24: =Orçamento!O957 -> k. | C24: =Orçamento!P957 -> IMPERMEABILIZAÇÃO | D24: =Orçamento!V957 -> 0 | E24: =Orçamento!X957 -> 0
B25: =Orçamento!O958 -> l. | C25: =Orçamento!P958 -> ISOLAMENTO TÉRMICO E ACÚSTICO | D25: =Orçamento!V958 -> 0 | E25: =Orçamento!X958 -> 0
B26: =Orçamento!O959 -> m. | C26: =Orçamento!P959 -> ESTRUTURA DE MADEIRA | D26: =Orçamento!V959 -> 0 | E26: =Orçamento!X959 -> 0
B27: =Orçamento!O960 -> n. | C27: =Orçamento!P960 -> ESTRUTURAS METÁLICAS | D27: =Orçamento!V960 -> 0 | E27: =Orçamento!X960 -> 0
B28: =Orçamento!O961 -> o. | C28: =Orçamento!P961 -> COBERTURAS | D28: =Orçamento!V961 -> 0 | E28: =Orçamento!X961 -> 0
B29: =Orçamento!O962 -> p. | C29: =Orçamento!P962 -> ESQUADRIAS DE MADEIRA | D29: =Orçamento!V962 -> 0 | E29: =Orçamento!X962 -> 0
B30: =Orçamento!O963 -> q. | C30: =Orçamento!P963 -> ESQUADRIAS METÁLICAS | D30: =Orçamento!V963 -> 0 | E30: =Orçamento!X963 -> 0
B31: =Orçamento!O964 -> r. | C31: =Orçamento!P964 -> VIDROS | D31: =Orçamento!V964 -> 0 | E31: =Orçamento!X964 -> 0
B32: =Orçamento!O965 -> s. | C32: =Orçamento!P965 -> REVESTIMENTO DE PAREDE | D32: =Orçamento!V965 -> 0 | E32: =Orçamento!X965 -> 0
B33: =Orçamento!O966 -> t. | C33: =Orçamento!P966 -> FORROS | D33: =Orçamento!V966 -> 0 | E33: =Orçamento!X966 -> 0
B34: =Orçamento!O967 -> u. | C34: =Orçamento!P967 -> REVESTIMENTO DE PISO | D34: =Orçamento!V967 -> 0 | E34: =Orçamento!X967 -> 0
B35: =Orçamento!O968 -> v. | C35: =Orçamento!P968 -> FERRAGENS | D35: =Orçamento!V968 -> 0 | E35: =Orçamento!X968 -> 0
B36: =Orçamento!O969 -> w. | C36: =Orçamento!P969 -> MARCENARIA | D36: =Orçamento!V969 -> 0 | E36: =Orçamento!X969 -> 0
B37: =Orçamento!O970 -> x. | C37: =Orçamento!P970 -> ADMINISTRAÇÃO | D37: =Orçamento!V970 -> 0 | E37: =Orçamento!X970 -> 0
B38: =Orçamento!O971 -> y. | C38: =Orçamento!P971 -> PINTURA | D38: =Orçamento!V971 -> 0 | E38: =Orçamento!X971 -> 0
B39: =Orçamento!O972 -> z. | C39: =Orçamento!P972 -> DIVERSOS | D39: =Orçamento!V972 -> 0 | E39: =Orçamento!X972 -> 0
A40: F | B40: TOTAL GERAL DO ORÇAMENTO (R$) C/BDI | D40: =SUM(D14:D39) -> 0 | E40: =SUM(E14:E39) -> 0

Sheet Parc Maior Relev
B3: UNIDADE ESCOLAR | E3: CÓDIGO INEP
B4: =Orçamento!$O$4 -> CENTRO DE ENSINO EM PERÍODO INTEGRAL SYLVIO DE MELLO | E4: =Orçamento!$V$4 -> 52069206
B6: OBRA | E6: CIDADE
B7: =Orçamento!$O$7 -> REFORMA | E7: =Orçamento!$V$7 -> MORRINHOS
B9: CRE | E9: ÁREA TOTAL CONSTRUÍDA (M²)
B10: =Orçamento!$O$10 -> MORRINHOS | E10: =Orçamento!$V$13 -> 3042.44
A11: FILTRO
B12: PARCELA DE MAIOR RELEVÂNCIA
A13: =IF(G14>0,"F","") ->  | B13: CÓDIGO | C13: SERVIÇO | D13: DESCRIÇÃO | E13: UNID | F13: QUANT | G13: PARC. MAIOR RELEV (100%)
A14: =IF(G14>0,"F","") ->  | B14: =Somatório!B22 -> f. | C14: INSTALAÇÕES ELÉTRICAS | D14: SUBESTAÇÃO | E14: KVA | F14: =SUMIF(Orçamento!$R$20:$R$928,'Parc Maior Relev'!D14,Orçamento!$T$20:$T$928) -> 0 | G14: =F14 -> 0
A15: =IF(SUM(G16:G32)>0,"F","") -> F | B15: CÓDIGO | C15: SERVIÇO | D15: DESCRIÇÃO | E15: UNID | F15: QUANT | G15: PARC. MAIOR RELEV (50%)
A16: =IF(G16>0,"F","") -> F | B16: =Somatório!B21 -> e. | C16: ESTRUTURA | D16: CONCRETO | E16: M3 | F16: =1.69+0.74+2.25+1.08+1.31+0.56+0.77+0.74+1.95+0.94+0.49+0.99+0.47+0.11+1.29+2.14+5.66+1.9+3.83+2.52 -> 31.43 | G16: =F16*0.5 -> 15.715
A17: =IF(G17>0,"F","") ->  | B17: f. | C17: INSTALAÇÕES ELÉTRICAS | D17: INSTALAÇÕES ELÉTRICAS | E17: KVA | F17: =SUMIF(Orçamento!$R$20:$R$928,'Parc Maior Relev'!D17,Orçamento!$T$20:$T$928) -> 0 | G17: =F17 -> 0
A18: =IF(G18>0,"F","") -> F | B18: =Somatório!B25 -> i. | C18: ALVENARIA E DIVISÓRIAS | D18: ALVENARIA DE TIJOLOS | E18: M2 | F18: =7.22+1.15+5.95+40.1+3.78+72.8+36.31+16.53+16.25+137.08+60.94+72.45 -> 470.56 | G18: =F18*0.5 -> 235.28
B19: =Somatório!B29 -> m. | C19: ESTRUTURA DE MADEIRA | D19: ESTRUTURA DE MADEIRA | E19: M2 | F19: =SUMIF(Orçamento!$R$20:$R$928,'Parc Maior Relev'!D19,Orçamento!$T$20:$T$928) -> 0 | G19: 0
B20: =Somatório!B31 -> o. | C20: COBERTURAS | D20: COBERTURA CERÂMICA | E20: M2 | F20: =SUMIF(Orçamento!$R$20:$R$928,'Parc Maior Relev'!D20,Orçamento!$T$20:$T$928) -> 0 | G20: 0
B21: o. | C21: COBERTURAS | D21: COBERTURA COM TELHA METÁLICA | E21: M2 | F21: =SUMIF(Orçamento!$R$20:$R$928,'Parc Maior Relev'!D21,Orçamento!$T$20:$T$928) -> 0 | G21: 0
B22: =Somatório!B35 -> s. | C22: REVESTIMENTO DE PAREDE | D22: CHAPISCO | E22: M2 | F22: =SUMIF(Orçamento!$R$20:$R$928,'Parc Maior Relev'!D22,Orçamento!$T$20:$T$928) -> 0 | G22: 0
B23: s. | C23: REVESTIMENTO DE PAREDE | D23: REBOCO | E23: M2 | F23: =SUMIF(Orçamento!$R$20:$R$928,'Parc Maior Relev'!D23,Orçamento!$T$20:$T$928) -> 0 | G23: =F23*0.5 -> 0
A24: F | B24: s. | C24: REVESTIMENTO DE PAREDE | D24: REVESTIMENTO CERÂMICO | E24: M2 | F24: =73.74+328.6+310.48+20+145 -> 877.82 | G24: =F24*0.5 -> 438.91
B25: =Somatório!B36 -> t. | C25: FORROS | D25: FORRO DE GESSO | E25: M2 | F25: =SUMIF(Orçamento!$R$20:$R$928,'Parc Maior Relev'!D25,Orçamento!$T$20:$T$928) -> 0 | G25: =F25*0.5 -> 0
B26: t. | C26: FORROS | D26: FORRO DE PVC | E26: M2 | F26: =SUMIF(Orçamento!$R$20:$R$928,'Parc Maior Relev'!D26,Orçamento!$T$20:$T$928) -> 0 | G26: =F26*0.5 -> 0
B27: t. | C27: FORROS | D27: FORRO DE GESSO ACARTONADO | E27: M2 | F27: =SUMIF(Orçamento!$R$20:$R$928,'Parc Maior Relev'!D27,Orçamento!$T$20:$T$928) -> 0 | G27: =F27*0.5 -> 0
B28: u. | C28: REVESTIMENTO DE PISO | D28: PISO DE GRANITINA | E28: M2 | F28: =SUMIF(Orçamento!$R$20:$R$928,'Parc Maior Relev'!D28,Orçamento!$T$20:$T$928) -> 0 | G28: 0
A29: F | B29: u. | C29: REVESTIMENTO DE PISO | D29: PISO LAMINADO | E29: M2 | F29: =560.23 -> 560.23 | G29: 280.115
B30: u. | C30: REVESTIMENTO DE PISO | D30: PISO DE CONCRETO DESEMPENADO | E30: M2 | F30: =SUMIF(Orçamento!$R$20:$R$928,'Parc Maior Relev'!D30,Orçamento!$T$20:$T$928) -> 0 | G30: 0
B31: u. | C31: REVESTIMENTO DE PISO | D31: PISO CERÂMICO | E31: M2 | F31: =SUMIF(Orçamento!$R$20:$R$928,'Parc Maior Relev'!D31,Orçamento!$T$20:$T$928) -> 0 | G31: =F31*0.5 -> 0
B32: y. | C32: PINTURA | D32: PINTURA | E32: M2 | F32: =SUMIF(Orçamento!$R$20:$R$928,'Parc Maior Relev'!D32,Orçamento!$T$20:$T$928) -> 0 | G32: 0
A33: F
A34: F | B34: (*) Para os fins do inciso I dp § 1º do Art. 30 da Lei Federal 8.666/93, são consideradas parcelas de maior relevância técnica as execuções apresentadas
A35: F

Sheet Composições
A4: UNIDADE ESCOLAR | H4: CÓDIGO INEP
A5: =Orçamento!$O$4 -> CENTRO DE ENSINO EM PERÍODO INTEGRAL SYLVIO DE MELLO | H5: =Orçamento!$V$4 -> 52069206
A7: OBRA | H7: CIDADE
A8: =Orçamento!$O$7 -> REFORMA | H8: =Orçamento!$V$7 -> MORRINHOS
A10: CRE | D10: ENDEREÇO | H10: REFERÊNCIA AGETOP
A11: =Orçamento!$O$10 -> MORRINHOS | D11: =Orçamento!$R$10 -> RUA PIAUI 386, CENTRO, CEP:75650-000 | H11: =Orçamento!$S$10 -> ABR/19 | I11: =Orçamento!$T$10 -> DESONERADA
A13: DATA | D13: ÁREA TOTAL CONSTRUÍDA (M²) | H13: REFERÊNCIA SINAPI
A14: =Orçamento!$S$7 -> 2020-07-07 | D14: =Orçamento!$V$13 -> 3042.44 | H14: =Orçamento!$V$10 -> NOV/19 | I14: =Orçamento!$W$10 -> DESONERADA
A16: COMPOSIÇÕES DE CUSTOS UNITÁRIOS - SEE-GO
A17: 385 | B17: FONTE | C17: CÓDIGO | D17: DESCRIÇÃO | E17: UNIDADE | F17: COEFIC. | G17: CUSTO UNITÁRIO | I17: CUSTO TOTAL (A) + (B) + (C) + (D) + (E)
G18: DESONERADO | H18: NÃO DESONER. | I18: DESONERADO | J18: NÃO DESONER.
B19: COMPOSIÇÃO | C19: COMP 385_SEE | D19: DEMOLIÇÃO POSTE DE CONCRETO/METALICA ENTRE 10 E 15 METROS C/ REAPROVEITAMENTO C/ TRANSPORTE ATE CAÇAMBA E CARGA | E19: UN | I19: 138.75 | J19: 140.14
B20: AGETOP_I | C20: 8 | D20: AJUDANTE | E20: h | F20: 1 | G20: 8.75 | H20: 10.14 | I20: 8.75 | J20: 10.14
B21: MÃO DE OBRA (B) - TOTAL | I21: 8.75 | J21: 10.14
B22: AGETOP | C22: 72080 | D22: POSTE/TRAFO - CAMINHÃO MUNCK 12 TON. (MÍNIMO 4H/DIA) | E22: H | F22: 1 | G22: 130 | H22: 130 | I22: 130 | J22: 130
B23: MATERIAL (C) - TOTAL | I23: 130 | J23: 130
A25: 554 | B25: FONTE | C25: CÓDIGO | D25: DESCRIÇÃO | E25: UNID | F25: COEFIC. | G25: CUSTO UNITÁRIO | I25: CUSTO TOTAL (A) + (B) + (C) + (D) + (E)
G26: DESONERADO | H26: NÃO DESONER. | I26: DESONERADO | J26: NÃO DESONER.
B27: COMPOSIÇÃO | C27: COMP 554_SEE | D27: CAIXA DE DECANTAÇÃO | E27: UN | F27: - | G27: - | H27: - | I27: 698.69 | J27: 743.82
B28: AGETOP | C28: 81840 | D28: TAMPA PARA CAIXA PASSAGEM FERRO FUNDIDO T-33 - TRÁFEGO LEVE | E28: Un | F28: 1 | G28: 114.58 | H28: 117 | I28: 114.58 | J28: 117
B29: AGETOP | C29: 81938 | D29: JOELHO 90 GRAUS DIAMETRO 100 MM | E29: Un | F29: 1 | G29: 15.63 | H29: 17.24 | I29: 15.63 | J29: 17.24
B30: AGETOP | C30: 82235 | D30: TE SANITARIO DIAMETRO 100 X 100 MM | E30: Un | F30: 1 | G30: 25.46 | H30: 27.1 | I30: 25.46 | J30: 27.1
B31: AGETOP | C31: 82304 | D31: TUBO SOLDAVEL P/ESGOTO DIAM. 100 MM | E31: m | F31: 3 | G31: 21.02 | H31: 22.89 | I31: 63.06 | J31: 68.67
B32: AGETOP | C32: 100102 | D32: ALVENARIA DE TIJOLO COMUM 1/2 VEZ - ARG. (1CI : 2CH : 8ARML) | E32: m2 | F32: 8 | G32: 57.8 | H32: 61.9 | I32: 462.4 | J32: 495.2
B33: AGETOP | C33: 220050 | D33: LASTRO DE CONCRETO REGULARIZADO SEM IMPERMEAB. 1:3:6 ESP= 5CM (BASE) | E33: m2 | F33: 1 | G33: 17.56 | H33: 18.61 | I33: 17.56 | J33: 18.61
B34: MÃO DE OBRA (B) - TOTAL | I34: 698.69 | J34: 743.82
B35: MATERIAL (C) - TOTAL | I35: 0 | J35: 0
A37: 382 | B37: FONTE | C37: CÓDIGO | D37: DESCRIÇÃO | E37: UNIDADE | F37: COEFIC. | G37: CUSTO UNITÁRIO | I37: CUSTO TOTAL (A) + (B) + (C) + (D) + (E)
G38: DESONERADO | H38: NÃO DESONER. | I38: DESONERADO | J38: NÃO DESONER.
B39: COMPOSIÇÃO | C39: COMP 382_SEE | D39: TE DE REDUCAO DE FERRO GALVANIZADO, COM ROSCA BSP, DE 3/4" X 1/2" | E39: UN | I39: 14.08 | J39: 14.91
B40: AGETOP_I | C40: 8 | D40: AJUDANTE | E40: h | F40: 0.6 | G40: 8.75 | H40: 10.14 | I40: 5.25 | J40: 6.08
B41: AGETOP_I | C41: 11 | D41: MATERIAL ELÉTRICO | E41: 0 | F41: 0.6105 | G41: 0 | H41: 0 | I41: 0 | J41: 0
B42: MÃO DE OBRA (B) - TOTAL | I42: 5.25 | J42: 6.08
B43: SINAPI_I | C43: 3146 | D43: FITA VEDA ROSCA EM ROLOS DE 18 MM X 10 M (L X C) | E43: UN | F43: 0.120754717 | G43: 3.9 | H43: 3.9 | I43: 0.47 | J43: 0.47
B44: SINAPI_I | C44: 6302 | D44: TE DE REDUCAO DE FERRO GALVANIZADO, COM ROSCA BSP, DE 3/4" X 1/2" | E44: UN | F44: 1 | G44: 8.36 | H44: 8.36 | I44: 8.36 | J44: 8.36
B45: MATERIAL (C) - TOTAL | I45: 8.83 | J45: 8.83
A47: 383 | B47: FONTE | C47: CÓDIGO | D47: DESCRIÇÃO | E47: UNIDADE | F47: COEFIC. | G47: CUSTO UNITÁRIO | I47: CUSTO TOTAL (A) + (B) + (C) + (D) + (E)
G48: DESONERADO | H48: NÃO DESONER. | I48: DESONERADO | J48: NÃO DESONER.
B49: COMPOSIÇÃO | C49: COMP 383_SEE | D49: BUCHA DE REDUCAO DE FERRO GALVANIZADO, COM ROSCA BSP, DE 1/2" X 1/4" | E49: UN | I49: 4.48 | J49: 4.7
B50: AGETOP_I | C50: 8 | D50: AJUDANTE | E50: h | F50: 0.16 | G50: 8.75 | H50: 10.14 | I50: 1.4 | J50: 1.62
B51: AGETOP_I | C51: 11 | D51: MATERIAL ELÉTRICO | E51: 0 | F51: 0.16 | G51: 0 | H51: 0 | I51: 0 | J51: 0
B52: MÃO DE OBRA (B) - TOTAL | I52: 1.4 | J52: 1.62
B53: AGETOP_I | C53: H689 | F53: 1.2 | G53: 0 | H53: 0 | I53: 0 | J53: 0
B54: SINAPI_I | C54: 770 | D54: BUCHA DE REDUCAO DE FERRO GALVANIZADO, COM ROSCA BSP, DE 1/2" X 1/4" | E54: UN | F54: 1 | G54: 3.08 | H54: 3.08 | I54: 3.08 | J54: 3.08
B55: MATERIAL (C) - TOTAL | I55: 3.08 | J55: 3.08
A57: 212 | B57: FONTE | C57: CÓDIGO | D57: DESCRIÇÃO | E57: UNIDADE | F57: COEFIC. | G57: CUSTO UNITÁRIO | I57: CUSTO TOTAL (A) + (B) + (C) + (D) + (E)
G58: DESONERADO | H58: NÃO DESONER. | I58: DESONERADO | J58: NÃO DESONER.
B59: COMPOSIÇÃO | C59: COMP 212_SEE | D59: NIPLE DE REDUÇÃO 1/2" X 1/4" BSP | E59: UN | I59: 7.45 | J59: 7.67
B60: AGETOP_I | C60: 8 | D60: AJUDANTE | E60: h | F60: 0.16 | G60: 8.75 | H60: 10.14 | I60: 1.4 | J60: 1.62
B61: AGETOP_I | C61: 11 | D61: MATERIAL ELÉTRICO | E61: 0 | F61: 0.16 | G61: 0 | H61: 0 | I61: 0 | J61: 0
B62: MÃO DE OBRA (B) - TOTAL | I62: 1.4 | J62: 1.62
B63: COTAÇÃO | C63: COT 103_SEE | D63: NIPLE DE REDUÇÃO 1/2" X 1/4" BSP | E63: UN | F63: 1 | G63: 6.053333333 | H63: 6.053333333 | I63: 6.05 | J63: 6.05
B64: MATERIAL (C) - TOTAL | I64: 6.05 | J64: 6.05
A66: 213 | B66: FONTE | C66: CÓDIGO | D66: DESCRIÇÃO | E66: UNIDADE | F66: COEFIC. | G66: CUSTO UNITÁRIO | I66: CUSTO TOTAL (A) + (B) + (C) + (D) + (E)
G67: DESONERADO | H67: NÃO DESONER. | I67: DESONERADO | J67: NÃO DESONER.
B68: COMPOSIÇÃO | C68: COMP 213_SEE | D68: NIPLE DE REDUÇÃO 3/4" X 1/2" BSP | E68: UN | I68: 11.11 | J68: 11.33
B69: AGETOP_I | C69: 8 | D69: AJUDANTE | E69: h | F69: 0.16 | G69: 8.75 | H69: 10.14 | I69: 1.4 | J69: 1.62
B70: AGETOP_I | C70: 11 | D70: MATERIAL ELÉTRICO | E70: 0 | F70: 0.16 | G70: 0 | H70: 0 | I70: 0 | J70: 0
B71: MÃO DE OBRA (B) - TOTAL | I71: 1.4 | J71: 1.62
B72: COTAÇÃO | C72: COT 104_SEE | D72: NIPLE DE REDUÇÃO 3/4" X 1/2" BSP | E72: UN | F72: 1 | G72: 9.71 | H72: 9.71 | I72: 9.71 | J72: 9.71
B73: MATERIAL (C) - TOTAL | I73: 9.71 | J73: 9.71
A75: 237 | B75: FONTE | C75: CÓDIGO | D75: DESCRIÇÃO | E75: UNIDADE | F75: COEFIC. | G75: CUSTO UNITÁRIO | I75: CUSTO TOTAL (A) + (B) + (C) + (D) + (E)
G76: DESONERADO | H76: NÃO DESONER. | I76: DESONERADO | J76: NÃO DESONER.
B77: COMPOSIÇÃO | C77: COMP 237_SEE | D77: FITA ANTICORROSIVA | E77: M | I77: 9.35 | J77: 9.63
B78: AGETOP_I | C78: 8 | D78: AJUDANTE | E78: h | F78: 0.2 | G78: 8.75 | H78: 10.14 | I78: 1.75 | J78: 2.03
B79: AGETOP_I | C79: 12 | D79: MATERIAL HIDRO-SANITÁRIO | E79: 0 | F79: 0.2 | G79: 0 | H79: 0 | I79: 0 | J79: 0
B80: MÃO DE OBRA (B) - TOTAL | I80: 1.75 | J80: 2.03
B81: SINAPI_I | C81: 39634 | D81: FITA ADESIVA ANTICORROSIVA DE PVC FLEXIVEL, COR PRETA, PARA PROTECAO TUBULACAO, 50 MM X 30 M (L X C), E= *0,25* MM | E81: M | F81: 1 | G81: 7.6 | H81: 7.6 | I81: 7.6 | J81: 7.6
B82: MATERIAL (C) - TOTAL | I82: 7.6 | J82: 7.6
A84: 542 | B84: FONTE | C84: CÓDIGO | D84: DESCRIÇÃO | E84: UNIDADE | F84: COEFIC. | G84: CUSTO UNITÁRIO | I84: CUSTO TOTAL (A) + (B) + (C) + (D) + (E)
G85: DESONERADO | H85: NÃO DESONER. | I85: DESONERADO | J85: NÃO DESONER.
B86: COMPOSIÇÃO | C86: COMP 542_SEE | D86: VÁLVULA UGV 3/4" (S) LATÃO | E86: UN | I86: 19.62 | J86: 20.22
B87: AGETOP_I | C87: 8 | D87: AJUDANTE | E87: h | F87: 0.432 | G87: 8.75 | H87: 10.14 | I87: 3.78 | J87: 4.38
B88: AGETOP_I | C88: 11 | D88: MATERIAL ELÉTRICO | E88: 0 | F88: 0.432 | G88: 0 | H88: 0 | I88: 0 | J88: 0
B89: MÃO DE OBRA (B) - TOTAL | I89: 3.78 | J89: 4.38
B90: COTAÇÃO | C90: COT 281_SEE | D90: VÁLVULA UGV 3/4" (S) LATÃO | E90: UN | F90: 1 | G90: 15.83666667 | H90: 15.83666667 | I90: 15.84 | J90: 15.84
B91: MATERIAL (C) - TOTAL | I91: 15.84 | J91: 15.84
A93: 543 | B93: FONTE | C93: CÓDIGO | D93: DESCRIÇÃO | E93: UNIDADE | F93: COEFIC. | G93: CUSTO UNITÁRIO | I93: CUSTO TOTAL (A) + (B) + (C) + (D) + (E)
G94: DESONERADO | H94: NÃO DESONER. | I94: DESONERADO | J94: NÃO DESONER.
B95: COMPOSIÇÃO | C95: COMP 543_SEE | D95: VÁLVULA UGV 1/2" (S) LATÃO | E95: UN | I95: 18.95 | J95: 19.55
B96: AGETOP_I | C96: 8 | D96: AJUDANTE | E96: h | F96: 0.432 | G96: 8.75 | H96: 10.14 | I96: 3.78 | J96: 4.38
B97: AGETOP_I | C97: 11 | D97: MATERIAL ELÉTRICO | E97: 0 | F97: 0.432 | G97: 0 | H97: 0 | I97: 0 | J97: 0
B98: MÃO DE OBRA (B) - TOTAL | I98: 3.78 | J98: 4.38
B99: COTAÇÃO | C99: COT 282_SEE | D99: VÁLVULA UGV 1/2" (S) LATÃO | E99: UN | F99: 1 | G99: 15.16666667 | H99: 15.16666667 | I99: 15.17 | J99: 15.17
B100: MATERIAL (C) - TOTAL | I100: 15.17 | J100: 15.17
A102: 211 | B102: FONTE | C102: CÓDIGO | D102: DESCRIÇÃO | E102: UNIDADE | F102: COEFIC. | G102: CUSTO UNITÁRIO | I102: CUSTO TOTAL (A) + (B) + (C) + (D) + (E)
G103: DESONERADO | H103: NÃO DESONER. | I103: DESONERADO | J103: NÃO DESONER.
B104: COMPOSIÇÃO | C104: COMP 211_SEE | D104: REGULADOR DE 2º ESTÁGIO 5KG/H | E104: UN | I104: 69.89 | J104: 71.49
B105: AGETOP_I | C105: 8 | D105: AJUDANTE | E105: h | F105: 1.15 | G105: 8.75 | H105: 10.14 | I105: 10.06 | J105: 11.66
B106: AGETOP_I | C106: 11 | D106: MATERIAL ELÉTRICO | E106: 0 | F106: 1.15 | G106: 0 | H106: 0 | I106: 0 | J106: 0
B107: MÃO DE OBRA (B) - TOTAL | I107: 10.06 | J107: 11.66
B108: COTAÇÃO | C108: COT 102_SEE | D108: REGULADOR DE 2º ESTÁGIO 5KG/H | E108: UN | F108: 1 | G108: 59.83333333 | H108: 59.83333333 | I108: 59.83 | J108: 59.83
B109: AGETOP_I | C109: H689 | F109: 2.82 | G109: 0 | H109: 0 | I109: 0 | J109: 0
B110: MATERIAL (C) - TOTAL | I110: 59.83 | J110: 59.83
A112: 210 | B112: FONTE | C112: CÓDIGO | D112: DESCRIÇÃO | E112: UNIDADE | F112: COEFIC. | G112: CUSTO UNITÁRIO | I112: CUSTO TOTAL (A) + (B) + (C) + (D) + (E)
G113: DESONERADO | H113: NÃO DESONER. | I113: DESONERADO | J113: NÃO DESONER.
B114: COMPOSIÇÃO | C114: COMP 210_SEE | D114: REGULADOR DE 1º ESTÁGIO 60KG/H MODELO AP-40 COM MANÔMETRO | E114: UN | I114: 215.64 | J114: 217.24
B115: AGETOP_I | C115: 8 | D115: AJUDANTE | E115: h | F115: 1.15 | G115: 8.75 | H115: 10.14 | I115: 10.06 | J115: 11.66
B116: AGETOP_I | C116: 11 | D116: MATERIAL ELÉTRICO | E116: 0 | F116: 1.15 | G116: 0 | H116: 0 | I116: 0 | J116: 0
B117: MÃO DE OBRA (B) - TOTAL | I117: 10.06 | J117: 11.66
B118: COTAÇÃO | C118: COT 101_SEE | D118: REGULADOR DE 1º ESTÁGIO 60KG/H MODELO AP-40 COM MANÔMETRO | E118: UN | F118: 1 | G118: 205.5766667 | H118: 205.5766667 | I118: 205.58 | J118: 205.58
B119: AGETOP_I | C119: H689 | F119: 2.82 | G119: 0 | H119: 0 | I119: 0 | J119: 0
B120: MATERIAL (C) - TOTAL | I120: 205.58 | J120: 205.58
A122: 235 | B122: FONTE | C122: CÓDIGO | D122: DESCRIÇÃO | E122: UNIDADE | F122: COEFIC. | G122: CUSTO UNITÁRIO | I122: CUSTO TOTAL (A) + (B) + (C) + (D) + (E)
G123: DESONERADO | H123: NÃO DESONER. | I123: DESONERADO | J123: NÃO DESONER.
B124: COMPOSIÇÃO | C124: COMP 235_SEE | D124: PLACA DE SINALIZAÇÃO EM PVC COD 01 - (300X300) PROIBIDO FUMAR | E124: UN | I124: 24.16 | J124: 24.28
B125: AGETOP_I | C125: 5 | D125: SERVENTE | E125: h | F125: 0.09 | G125: 8.75 | H125: 10.14 | I125: 0.79 | J125: 0.91
B126: MÃO DE OBRA (B) - TOTAL | I126: 0.79 | J126: 0.91
B127: AGETOP_I | C127: 3070 | D127: BUCHA DE NYLON S-6 | E127: un | F127: 2 | G127: 0.04 | H127: 0.04 | I127: 0.08 | J127: 0.08
B128: AGETOP_I | C128: 3393 | D128: PARAFUSO P/BUCHA S-6 | E128: un | F128: 2 | G128: 0.08 | H128: 0.08 | I128: 0.16 | J128: 0.16
B129: SINAPI_I | C129: 37556 | D129: PLACA DE SINALIZACAO DE SEGURANCA CONTRA INCENDIO, FOTOLUMINESCENTE, QUADRADA, *20 X 20* CM, EM PVC *2* MM ANTI-CHAMAS (SIMBOLOS, CORES E PICTOGRAMAS CONFORME NBR 13434) | E129: UN | F129: 1 | G129: 23.13 | H129: 23.13 | I129: 23.13 | J129: 23.13
B130: MATERIAL (C) - TOTAL | I130: 23.37 | J130: 23.37
A132: 236 | B132: FONTE | C132: CÓDIGO | D132: DESCRIÇÃO | E132: UNIDADE | F132: COEFIC. | G132: CUSTO UNITÁRIO | I132: CUSTO TOTAL (A) + (B) + (C) + (D) + (E)
G133: DESONERADO | H133: NÃO DESONER. | I133: DESONERADO | J133: NÃO DESONER.
B134: COMPOSIÇÃO | C134: COMP 236_SEE | D134: PLACA DE SINALIZAÇÃO EM PVC COD 06 - (300X300) PERIGO INFLAMÁVEL | E134: UN | I134: 24.16 | J134: 24.28
B135: AGETOP_I | C135: 5 | D135: SERVENTE | E135: h | F135: 0.09 | G135: 8.75 | H135: 10.14 | I135: 0.79 | J135: 0.91
B136: MÃO DE OBRA (B) - TOTAL | I136: 0.79 | J136: 0.91
B137: AGETOP_I | C137: 3070 | D137: BUCHA DE NYLON S-6 | E137: un | F137: 2 | G137: 0.04 | H137: 0.04 | I137: 0.08 | J137: 0.08
B138: AGETOP_I | C138: 3393 | D138: PARAFUSO P/BUCHA S-6 | E138: un | F138: 2 | G138: 0.08 | H138: 0.08 | I138: 0.16 | J138: 0.16
B139: SINAPI_I | C139: 37556 | D139: PLACA DE SINALIZACAO DE SEGURANCA CONTRA INCENDIO, FOTOLUMINESCENTE, QUADRADA, *20 X 20* CM, EM PVC *2* MM ANTI-CHAMAS (SIMBOLOS, CORES E PICTOGRAMAS CONFORME NBR 13434) | E139: UN | F139: 1 | G139: 23.13 | H139: 23.13 | I139: 23.13 | J139: 23.13
B140: MATERIAL (C) - TOTAL | I140: 23.37 | J140: 23.37
A142: 40 | B142: FONTE | C142: CÓDIGO | D142: DESCRIÇÃO | E142: UNIDADE | F142: COEFIC. | G142: CUSTO UNITÁRIO | I142: CUSTO TOTAL (A) + (B) + (C) + (D) + (E)
G143: DESONERADO | H143: NÃO DESONER. | I143: DESONERADO | J143: NÃO DESONER.
B144: COMPOSIÇÃO | C144: COMP 040_SEE | D144: CONJUNTO MOTOR-BOMBA ELÉTRICA TRIFÁSICO 380/220 V PARA VZ= 24,33 M³/H, HM= 46,24 M POTÊNCIA= 7,5 CV | E144: UN | I144: 3862.67 | J144: 3873.79
B145: AGETOP_I | C145: 8 | D145: AJUDANTE | E145: h | F145: 8 | G145: 8.75 | H145: 10.14 | I145: 70 | J145: 81.12
B146: AGETOP_I | C146: 11 | D146: MATERIAL ELÉTRICO | E146: 0 | F146: 8 | G146: 0 | H146: 0 | I146: 0 | J146: 0
B147: MÃO DE OBRA (B) - TOTAL | I147: 70 | J147: 81.12
B148: COTAÇÃO | C148: COT 008_SEE | D148: CONJUNTO MOTOR-BOMBA ELÉTRICA TRIFÁSICO 380/220 V PARA VZ= 24,33 M³/H, HM= 46,24 M POTÊNCIA= 7,5 CV | E148: UN | F148: 1 | G148: 3792.666667 | H148: 3792.666667 | I148: 3792.67 | J148: 3792.67
B149: MATERIAL (C) - TOTAL | I149: 3792.67 | J149: 3792.67
A151: 17 | B151: FONTE | C151: CÓDIGO | D151: DESCRIÇÃO | E151: UNIDADE | F151: COEFIC. | G151: CUSTO UNITÁRIO | I151: CUSTO TOTAL (A) + (B) + (C) + (D) + (E)
G152: DESONERADO | H152: NÃO DESONER. | I152: DESONERADO | J152: NÃO DESONER.
B153: COMPOSIÇÃO | C153: COMP 017_SEE | D153: REDUCAO GIRATÓRIA TIPO STORZ LATAO P/ INST. PREDIAL COMBATE A INCENDIO ENGATE RAPIDO 2.1/2" X 1.1/2" | E153: UN | G153: - | H153: - | I153: 97.09 | J153: 97.31
B154: AGETOP_I | C154: 8 | D154: AJUDANTE | E154: h | F154: 0.16 | G154: 8.75 | H154: 10.14 | I154: 1.4 | J154: 1.62
B155: AGETOP_I | C155: 11 | D155: MATERIAL ELÉTRICO | E155: 0 | F155: 0.16 | G155: 0 | H155: 0 | I155: 0 | J155: 0
B156: MÃO DE OBRA (B) - TOTAL | I156: 1.4 | J156: 1.62
B157: SINAPI_I | C157: 20972 | D157: REDUCAO FIXA TIPO STORZ, ENGATE RAPIDO 2.1/2" X 1.1/2", EM LATAO, PARA INSTALACAO PREDIAL COMBATE A INCENDIO PREDIAL | E157: UN | F157: 1 | G157: 95.69 | H157: 95.69 | I157: 95.69 | J157: 95.69
B158: MATERIAL (C) - TOTAL | I158: 95.69 | J158: 95.69
A160: 18 | B160: FONTE | C160: CÓDIGO | D160: DESCRIÇÃO | E160: UNIDADE | F160: COEFIC. | G160: CUSTO UNITÁRIO | I160: CUSTO TOTAL (A) + (B) + (C) + (D) + (E)
G161: DESONERADO | H161: NÃO DESONER. | I161: DESONERADO | J161: NÃO DESONER.
B162: COMPOSIÇÃO | C162: COMP 018_SEE | D162: CHAVE DUPLA P/ CONEXÕES TIPO STORZ EM LATÃO ENGATE RÁPIDO 1 1/2" X 2 1/2" | E162: UN | G162: - | H162: - | I162: 12.75 | J162: 12.75
B163: AGETOP_I | C163: 11 | D163: MATERIAL ELÉTRICO | E163: 0 | F163: 0.15 | G163: 0 | H163: 0 | I163: 0 | J163: 0
B164: MÃO DE OBRA (B) - TOTAL | I164: 0 | J164: 0
B165: SINAPI_I | C165: 20971 | D165: CHAVE DUPLA PARA CONEXOES TIPO STORZ, ENGATE RAPIDO 1 1/2" X 2 1/2", EM LATAO, PARA INSTALACAO PREDIAL COMBATE A INCENDIO | E165: UN | F165: 1 | G165: 12.75 | H165: 12.75 | I165: 12.75 | J165: 12.75
B166: MATERIAL (C) - TOTAL | I166: 12.75 | J166: 12.75
A168: 87 | B168: FONTE | C168: CÓDIGO | D168: DESCRIÇÃO | E168: UNIDADE | F168: COEFIC. | G168: CUSTO UNITÁRIO | I168: CUSTO TOTAL (A) + (B) + (C) + (D) + (E)
G169: DESONERADO | H169: NÃO DESONER. | I169: DESONERADO | J169: NÃO DESONER.
B170: COMPOSIÇÃO | C170: COMP 087_SEE | D170: REGISTRO DE GAVETA COM HASTE ASCENDENTE DE BRONZE 2 1/2" | E170: UN | I170: 241.73 | J170: 243.33
B171: AGETOP_I | C171: 8 | D171: AJUDANTE | E171: h | F171: 1.15 | G171: 8.75 | H171: 10.14 | I171: 10.06 | J171: 11.66
B172: AGETOP_I | C172: 11 | D172: MATERIAL ELÉTRICO | E172: 0 | F172: 1.15 | G172: 0 | H172: 0 | I172: 0 | J172: 0
B173: MÃO DE OBRA (B) - TOTAL | I173: 10.06 | J173: 11.66
B174: AGETOP_I | C174: H689 | F174: 2.82 | G174: 0 | H174: 0 | I174: 0 | J174: 0
B175: COTAÇÃO | C175: COT 017_SEE | D175: REGISTRO DE GAVETA COM HASTE ASCENDENTE DE BRONZE 2 1/2" | E175: UN | F175: 1 | G175: 231.6666667 | H175: 231.6666667 | I175: 231.67 | J175: 231.67
B176: MATERIAL (C) - TOTAL | I176: 231.67 | J176: 231.67
A178: 30 | B178: FONTE | C178: CÓDIGO | D178: DESCRIÇÃO | E178: UNIDADE | F178: COEFIC. | G178: CUSTO UNITÁRIO | I178: CUSTO TOTAL (A) + (B) + (C) + (D) + (E)
G179: DESONERADO | H179: NÃO DESONER. | I179: DESONERADO | J179: NÃO DESONER.
B180: COMPOSIÇÃO | C180: COMP 030_SEE | D180: COTOVELO DE FERRO GALV. 90° X 2 1/2" | E180: UN | I180: 56.78 | J180: 58.06
B181: AGETOP_I | C181: 8 | D181: AJUDANTE | E181: h | F181: 0.92 | G181: 8.75 | H181: 10.14 | I181: 8.05 | J181: 9.33
B182: AGETOP_I | C182: 11 | D182: MATERIAL ELÉTRICO | E182: 0 | F182: 0.92 | G182: 0 | H182: 0 | I182: 0 | J182: 0
B183: MÃO DE OBRA (B) - TOTAL | I183: 8.05 | J183: 9.33
B184: SINAPI_I | C184: 3470 | D184: COTOVELO 90 GRAUS DE FERRO GALVANIZADO, COM ROSCA BSP, DE 2 1/2" | E184: UN | F184: 1 | G184: 48.73 | H184: 48.73 | I184: 48.73 | J184: 48.73
B185: AGETOP_I | C185: H689 | F185: 2 | G185: 0 | H185: 0 | I185: 0 | J185: 0
B186: MATERIAL (C) - TOTAL | I186: 48.73 | J186: 48.73
A188: 77 | B188: FONTE | C188: CÓDIGO | D188: DESCRIÇÃO | E188: UNIDADE | F188: COEFIC. | G188: CUSTO UNITÁRIO | I188: CUSTO TOTAL (A) + (B) + (C) + (D) + (E)
G189: DESONERADO | H189: NÃO DESONER. | I189: DESONERADO | J189: NÃO DESONER.
B190: COMPOSIÇÃO | C190: COMP 077_SEE | D190: UNIAO FERRO GALV C/ASSENTO CONICO BRONZE 2 1/2" | E190: UN | I190: 142.49 | J190: 143.05
B191: AGETOP_I | C191: 8 | D191: AJUDANTE | E191: h | F191: 0.4 | G191: 8.75 | H191: 10.14 | I191: 3.5 | J191: 4.06
B192: AGETOP_I | C192: 11 | D192: MATERIAL ELÉTRICO | E192: 0 | F192: 0.4 | G192: 0 | H192: 0 | I192: 0 | J192: 0
B193: MÃO DE OBRA (B) - TOTAL | I193: 3.5 | J193: 4.06
B194: AGETOP_I | C194: H689 | F194: 2.4 | G194: 0 | H194: 0 | I194: 0 | J194: 0
B195: SINAPI_I | C195: 12427 | D195: UNIAO COM ASSENTO CONICO DE BRONZE, DIAMETRO 2 1/2" | E195: UN | F195: 1 | G195: 138.99 | H195: 138.99 | I195: 138.99 | J195: 138.99
B196: MATERIAL (C) - TOTAL | I196: 138.99 | J196: 138.99
A198: 347 | B198: FONTE | C198: CÓDIGO | D198: DESCRIÇÃO | E198: UNIDADE | F198: COEFIC. | G198: CUSTO UNITÁRIO | I198: CUSTO TOTAL (A) + (B) + (C) + (D) + (E)
G199: DESONERADO | H199: NÃO DESONER. | I199: DESONERADO | J199: NÃO DESONER.
B200: COMPOSIÇÃO | C200: COMP 347_SEE | D200: ADAPTADOR PVC SOLDAVEL, COM FLANGES LIVRES, 75 MM X 2 1/2", PARA CAIXA D' AGUA | E200: UN | I200: 117.83 | J200: 118.02
B201: AGETOP_I | C201: 11 | D201: MATERIAL ELÉTRICO | E201: 0 | F201: 0.14 | G201: 0 | H201: 0 | I201: 0 | J201: 0
B202: AGETOP_I | C202: 8 | D202: AJUDANTE | E202: h | F202: 0.14 | G202: 8.75 | H202: 10.14 | I202: 1.23 | J202: 1.42
B203: MÃO DE OBRA (B) - TOTAL | I203: 1.23 | J203: 1.42
B204: SINAPI_I | C204: 83 | D204: ADAPTADOR PVC SOLDAVEL, COM FLANGES LIVRES, 75 MM X 2 1/2", PARA CAIXA D' AGUA | E204: UN | F204: 1 | G204: 116.6 | H204: 116.6 | I204: 116.6 | J204: 116.6
B205: AGETOP_I | C205: H689 | F205: 1.88 | G205: 0 | H205: 0 | I205: 0 | J205: 0
B206: MATERIAL (C) - TOTAL | I206: 116.6 | J206: 116.6
A208: 22 | B208: FONTE | C208: CÓDIGO | D208: DESCRIÇÃO | E208: UNIDADE | F208: COEFIC. | G208: CUSTO UNITÁRIO | I208: CUSTO TOTAL (A) + (B) + (C) + (D) + (E)
G209: DESONERADO | H209: NÃO DESONER. | I209: DESONERADO | J209: NÃO DESONER.
B210: COMPOSIÇÃO | C210: COMP 022_SEE | D210: TAMPÃO FOFO 40X50CM C/INSCRIÇÃO | E210: UN | G210: - | H210: - | I210: 195.55 | J210: 195.55
B211: AGETOP_I | C211: 11 | D211: MATERIAL ELÉTRICO | E211: 0 | F211: 0.15 | G211: 0 | H211: 0 | I211: 0 | J211: 0
B212: MÃO DE OBRA (B) - TOTAL | I212: 0 | J212: 0
B213: SINAPI_I | C213: 11293 | D213: TAMPAO FOFO SIMPLES COM BASE, CLASSE A15 CARGA MAX 1,5 T, 400 X 500 MM, COM INSCRICAO INCENDIO | E213: UN | F213: 1 | G213: 195.55 | H213: 195.55 | I213: 195.55 | J213: 195.55
B214: MATERIAL (C) - TOTAL | I214: 195.55 | J214: 195.55
A216: 546 | B216: FONTE | C216: CÓDIGO | D216: DESCRIÇÃO | E216: UNID | F216: COEFIC. | G216: CUSTO UNITÁRIO | I216: CUSTO TOTAL (A) + (B) + (C) + (D) + (E)
G217: DESONERADO | H217: NÃO DESONER. | I217: DESONERADO | J217: NÃO DESONER.
B218: COMPOSIÇÃO | C218: COMP 546_SEE | D218: BUJÃO DE REBORDO 2.1/2" | E218: UN | F218: - | G218: - | H218: - | I218: 15.61 | J218: 15.71
B219: AGETOP_I | C219: 8 | D219: AJUDANTE | E219: h | F219: 0.07 | G219: 8.75 | H219: 10.14 | I219: 0.61 | J219: 0.71
B220: AGETOP_I | C220: 11 | D220: MATERIAL ELÉTRICO | E220: 0 | F220: 0.07 | G220: 0 | H220: 0 | I220: 0 | J220: 0
B221: MÃO DE OBRA (B) - TOTAL | I221: 0.61 | J221: 0.71
B222: COTAÇÃO | C222: COT 286_SEE | D222: BUJÃO DE REBORDO 2.1/2" | E222: UN | F222: 1 | G222: 15 | H222: 15 | I222: 15 | J222: 15
B223: MATERIAL (C) - TOTAL | I223: 15 | J223: 15
A225: 186 | B225: FONTE | C225: CÓDIGO | D225: DESCRIÇÃO | E225: UNIDADE | F225: COEFIC. | G225: CUSTO UNITÁRIO | I225: CUSTO TOTAL (A) + (B) + (C) + (D) + (E)
G226: DESONERADO | H226: NÃO DESONER. | I226: DESONERADO | J226: NÃO DESONER.
B227: COMPOSIÇÃO | C227: COMP 186_SEE | D227: BOTOEIRA BOMBA DE INCÊNDIO C/ MARTELO CONVENCIONAL/ ANALÓGICA | E227: UN | I227: 72.25 | J227: 73.64
B228: AGETOP_I | C228: 8 | D228: AJUDANTE | E228: h | F228: 1 | G228: 8.75 | H228: 10.14 | I228: 8.75 | J228: 10.14
B229: AGETOP_I | C229: 12 | D229: MATERIAL HIDRO-SANITÁRIO | E229: 0 | F229: 1 | G229: 0 | H229: 0 | I229: 0 | J229: 0
... 208 more rows
